{"text_format":"1","workbook":"xlsx","n_sheets":10,"sheets":["Tarife","Parameter","Listen","Texte","Berechnung_einzeln","Beitragsrechner","Beitragsrechner IV","Druck","Erfassung_Bestand","Bestandesübersicht"],"not_rendered":{"charts":0,"images":3,"macros":1,"external_links":0,"defined_names":123,"comments":0,"pivot_tables":0},"unopened":[],"bounds":{"document_bytes":16777216,"sheet_cells":100000,"rows_first":2000,"rows_last":500,"rows_between":2000,"halvings":0,"cell_chars":16384,"cell_head_chars":4096},"cells_cut":0,"cells_raw":0,"read":"whole","date_system":"1900"}

{"sheet":"Tarife","index":0,"n_rows":164,"n_cols":16,"rows_kept":164,"cut":false,"hidden":true,"merged":[[0,0,0,2],[1,1,1,2],[1,3,1,4],[1,5,1,6]]}
["Tarife für das Jahr",null,null,null,null,null,2022]
[null,"Plan A",null,"Plan B",null,"Plan C"]
[null,"Männer","Frauen","Männer","Frauen","Männer","Frauen","SiFo","VK","Alter",null,null,null,"VK Rabatte","Rabatt","Vkmax"]
[{"$f":"p_jahr-18","v":2004},1.12E-2,1.01E-2,1.15E-2,1.03E-2,1.3299999999999999E-2,1.12E-2,0,8.0000000000000002E-3,{"$f":"p_jahr-A4","v":18},null,null,null,0,0,360]
[{"$f":"A4-1","v":2003},1.12E-2,1.01E-2,1.15E-2,1.03E-2,1.3299999999999999E-2,1.12E-2,0,8.0000000000000002E-3,19,null,null,null,1,1E-3,336]
[2002,1.12E-2,1.01E-2,1.15E-2,1.03E-2,1.3299999999999999E-2,1.12E-2,0,8.0000000000000002E-3,20,null,null,null,2,2E-3,312]
[2001,1.12E-2,1.01E-2,1.15E-2,1.03E-2,1.3299999999999999E-2,1.12E-2,0,8.0000000000000002E-3,21,null,null,null,3,3.0000000000000001E-3,288]
[2000,1.12E-2,1.01E-2,1.15E-2,1.03E-2,1.3299999999999999E-2,1.12E-2,0,8.0000000000000002E-3,22,null,null,null,4,4.0000000000000001E-3,264]
[1999,1.12E-2,1.01E-2,1.15E-2,1.03E-2,1.3299999999999999E-2,1.12E-2,0,8.0000000000000002E-3,23,null,null,null,5,5.0000000000000001E-3,240]
[1998,1.12E-2,1.01E-2,1.15E-2,1.03E-2,1.3299999999999999E-2,1.12E-2,0,8.0000000000000002E-3,24]
[1997,9.1509999999999994E-2,9.3710000000000002E-2,9.2509999999999995E-2,9.511E-2,9.6610000000000001E-2,9.8710000000000006E-2,1.1999999999999999E-3,1.4E-2,25,"=> SiFo ab 25ig"]
[1996,9.1509999999999994E-2,9.3710000000000002E-2,9.2509999999999995E-2,9.511E-2,9.6610000000000001E-2,9.8710000000000006E-2,1.1999999999999999E-3,1.4E-2,26]
[1995,9.1509999999999994E-2,9.3710000000000002E-2,9.2509999999999995E-2,9.511E-2,9.6610000000000001E-2,9.8710000000000006E-2,1.1999999999999999E-3,1.4E-2,27]
[1994,9.1509999999999994E-2,9.3710000000000002E-2,9.2509999999999995E-2,9.511E-2,9.6610000000000001E-2,9.8710000000000006E-2,1.1999999999999999E-3,1.4E-2,28]
[1993,9.1509999999999994E-2,9.3710000000000002E-2,9.2509999999999995E-2,9.511E-2,9.6610000000000001E-2,9.8710000000000006E-2,1.1999999999999999E-3,1.4E-2,29]
[1992,9.1509999999999994E-2,9.3710000000000002E-2,9.2509999999999995E-2,9.511E-2,9.6610000000000001E-2,9.8710000000000006E-2,1.1999999999999999E-3,1.4E-2,30]
[1991,9.1509999999999994E-2,9.3710000000000002E-2,9.2509999999999995E-2,9.511E-2,9.6610000000000001E-2,9.8710000000000006E-2,1.1999999999999999E-3,1.4E-2,31]
[1990,9.1509999999999994E-2,9.3710000000000002E-2,9.2509999999999995E-2,9.511E-2,9.6610000000000001E-2,9.8710000000000006E-2,1.1999999999999999E-3,1.4E-2,32]
[1989,9.1509999999999994E-2,9.3710000000000002E-2,9.2509999999999995E-2,9.511E-2,9.6610000000000001E-2,9.8710000000000006E-2,1.1999999999999999E-3,1.4E-2,33]
[1988,9.1509999999999994E-2,9.3710000000000002E-2,9.2509999999999995E-2,9.511E-2,9.6610000000000001E-2,9.8710000000000006E-2,1.1999999999999999E-3,1.4E-2,34]
[1987,0.12901000000000001,0.13400999999999999,0.13120999999999999,0.13700999999999999,0.13971,0.14291000000000001,1.1999999999999999E-3,1.4E-2,35]
[1986,0.12901000000000001,0.13400999999999999,0.13120999999999999,0.13700999999999999,0.13971,0.14291000000000001,1.1999999999999999E-3,1.4E-2,36]
[1985,0.12901000000000001,0.13400999999999999,0.13120999999999999,0.13700999999999999,0.13971,0.14291000000000001,1.1999999999999999E-3,1.4E-2,37]
[1984,0.12901000000000001,0.13400999999999999,0.13120999999999999,0.13700999999999999,0.13971,0.14291000000000001,1.1999999999999999E-3,1.4E-2,38]
[1983,0.12901000000000001,0.13400999999999999,0.13120999999999999,0.13700999999999999,0.13971,0.14291000000000001,1.1999999999999999E-3,1.4E-2,39]
[1982,0.12901000000000001,0.13400999999999999,0.13120999999999999,0.13700999999999999,0.13971,0.14291000000000001,1.1999999999999999E-3,1.4E-2,40]
[1981,0.12901000000000001,0.13400999999999999,0.13120999999999999,0.13700999999999999,0.13971,0.14291000000000001,1.1999999999999999E-3,1.4E-2,41]
[1980,0.12901000000000001,0.13400999999999999,0.13120999999999999,0.13700999999999999,0.13971,0.14291000000000001,1.1999999999999999E-3,1.4E-2,42]
[1979,0.12901000000000001,0.13400999999999999,0.13120999999999999,0.13700999999999999,0.13971,0.14291000000000001,1.1999999999999999E-3,1.4E-2,43]
[1978,0.12901000000000001,0.13400999999999999,0.13120999999999999,0.13700999999999999,0.13971,0.14291000000000001,1.1999999999999999E-3,1.4E-2,44]
[1977,0.18611,0.18561,0.19300999999999999,0.19170999999999999,0.20771000000000001,0.20571,1.1999999999999999E-3,1.4E-2,45]
[1976,0.18611,0.18561,0.19300999999999999,0.19170999999999999,0.20771000000000001,0.20571,1.1999999999999999E-3,1.4E-2,46]
[1975,0.18611,0.18561,0.19300999999999999,0.19170999999999999,0.20771000000000001,0.20571,1.1999999999999999E-3,1.4E-2,47]
[1974,0.18611,0.18561,0.19300999999999999,0.19170999999999999,0.20771000000000001,0.20571,1.1999999999999999E-3,1.4E-2,48]
[1973,0.18611,0.18561,0.19300999999999999,0.19170999999999999,0.20771000000000001,0.20571,1.1999999999999999E-3,1.4E-2,49]
[1972,0.18611,0.18561,0.19300999999999999,0.19170999999999999,0.20771000000000001,0.20571,1.1999999999999999E-3,1.4E-2,50]
[1971,0.18611,0.18561,0.19300999999999999,0.19170999999999999,0.20771000000000001,0.20571,1.1999999999999999E-3,1.4E-2,51]
[1970,0.18611,0.18561,0.19300999999999999,0.19170999999999999,0.20771000000000001,0.20571,1.1999999999999999E-3,1.4E-2,52]
[1969,0.18611,0.18561,0.19300999999999999,0.19170999999999999,0.20771000000000001,0.20571,1.1999999999999999E-3,1.4E-2,53]
[1968,0.18611,0.18561,0.19300999999999999,0.19170999999999999,0.20771000000000001,0.20571,1.1999999999999999E-3,1.4E-2,54]
[1967,0.21812000000000001,0.21501999999999999,0.22852,0.22372,0.24612000000000001,0.23782,1.1999999999999999E-3,1.4E-2,55]
[1966,0.21812000000000001,0.21501999999999999,0.22852,0.22372,0.24612000000000001,0.23782,1.1999999999999999E-3,1.4E-2,56]
[1965,0.21812000000000001,0.21501999999999999,0.22852,0.22372,0.24612000000000001,0.23782,1.1999999999999999E-3,1.4E-2,57]
[1964,0.21812000000000001,0.21501999999999999,0.22852,0.22372,0.24612000000000001,0.23782,1.1999999999999999E-3,1.4E-2,58]
[1963,0.21812000000000001,0.21501999999999999,0.22852,0.22372,0.24612000000000001,0.23782,1.1999999999999999E-3,1.4E-2,59]
[1962,0.21012,0.20532,0.21962000000000001,0.21212,0.23102,0.22142000000000001,1.1999999999999999E-3,1.4E-2,60]
[1961,0.21012,0.20532,0.21962000000000001,0.21212,0.23102,0.22142000000000001,1.1999999999999999E-3,1.4E-2,61]
[1960,0.21012,0.20532,0.21962000000000001,0.21212,0.23102,0.22142000000000001,1.1999999999999999E-3,1.4E-2,62]
[1959,0.21012,0.20532,0.21962000000000001,0.21212,0.23102,0.22142000000000001,1.1999999999999999E-3,1.4E-2,63]
[1958,0.21012,0.20532,0.21962000000000001,0.21212,0.23102,0.22142000000000001,1.1999999999999999E-3,1.4E-2,64]
[1957,0.21012,0,0.21962000000000001,0,0.23102,0,1.1999999999999999E-3,1.4E-2,65]
[]
[]
[]
[]
[]
[]
[]
[]
["Sparprämie","Männer","Frauen","Plan E","Plan F","Plan E+","Plan F+"]
[18,null,null,0,0,0,0]
[19,null,null,0,0,0,0]
[20,null,null,0,0,0,0]
[21,null,null,0,0,0,0]
[22,null,null,0,0,0,0]
[23,null,null,0,0,0,0]
[24,null,null,0,0,0,0]
[25,7.0000000000000007E-2,7.0000000000000007E-2,0.08,0.13,0.08,0.13]
[26,7.0000000000000007E-2,7.0000000000000007E-2,0.08,0.13,0.08,0.13]
[27,7.0000000000000007E-2,7.0000000000000007E-2,0.08,0.13,0.08,0.13]
[28,7.0000000000000007E-2,7.0000000000000007E-2,0.08,0.13,0.08,0.13]
[29,7.0000000000000007E-2,7.0000000000000007E-2,0.08,0.13,0.08,0.13]
[30,7.0000000000000007E-2,7.0000000000000007E-2,0.08,0.13,0.08,0.13]
[31,7.0000000000000007E-2,7.0000000000000007E-2,0.08,0.13,0.08,0.13]
[32,7.0000000000000007E-2,7.0000000000000007E-2,0.08,0.13,0.08,0.13]
[33,7.0000000000000007E-2,7.0000000000000007E-2,0.08,0.13,0.08,0.13]
[34,7.0000000000000007E-2,7.0000000000000007E-2,0.08,0.13,0.08,0.13]
[35,0.1,0.1,0.05,0.1,0.05,0.1]
[36,0.1,0.1,0.05,0.1,0.05,0.1]
[37,0.1,0.1,0.05,0.1,0.05,0.1]
[38,0.1,0.1,0.05,0.1,0.05,0.1]
[39,0.1,0.1,0.05,0.1,0.05,0.1]
[40,0.1,0.1,0.05,0.1,0.05,0.1]
[41,0.1,0.1,0.1,0.15,0.1,0.15]
[42,0.1,0.1,0.1,0.15,0.1,0.15]
[43,0.1,0.1,0.1,0.15,0.1,0.15]
[44,0.1,0.1,0.1,0.15,0.1,0.15]
[45,0.15,0.15,0.05,0.1,0.05,0.1]
[46,0.15,0.15,0.05,0.1,0.05,0.1]
[47,0.15,0.15,0.05,0.1,0.05,0.1]
[48,0.15,0.15,0.05,0.1,0.05,0.1]
[49,0.15,0.15,0.05,0.1,0.05,0.1]
[50,0.15,0.15,0.05,0.1,0.05,0.1]
[51,0.15,0.15,0.05,0.1,0.05,0.1]
[52,0.15,0.15,0.05,0.1,0.05,0.1]
[53,0.15,0.15,0.05,0.1,0.05,0.1]
[54,0.15,0.15,0.05,0.1,0.05,0.1]
[55,0.18,0.18,0.02,7.0000000000000007E-2,0.02,7.0000000000000007E-2]
[56,0.18,0.18,0.02,7.0000000000000007E-2,0.02,7.0000000000000007E-2]
[57,0.18,0.18,0.02,7.0000000000000007E-2,0.02,7.0000000000000007E-2]
[58,0.18,0.18,0.02,7.0000000000000007E-2,0.02,7.0000000000000007E-2]
[59,0.18,0.18,0.02,7.0000000000000007E-2,0.02,7.0000000000000007E-2]
[60,0.18,0.18,0.02,7.0000000000000007E-2,0.02,7.0000000000000007E-2]
[61,0.18,0.18,0.02,7.0000000000000007E-2,0.02,7.0000000000000007E-2]
[62,0.18,0.18,0.02,7.0000000000000007E-2,0.02,7.0000000000000007E-2]
[63,0.18,0.18,0.02,7.0000000000000007E-2,0.02,7.0000000000000007E-2]
[64,0.18,0.18,0.02,7.0000000000000007E-2,0.02,7.0000000000000007E-2]
[65,0.18,null,0.02,7.0000000000000007E-2,0.02,7.0000000000000007E-2]
[]
[]
[]
[]
[]
[]
[]
["Risikoprämie","Plan E+","Plan F+"]
[18,0,0]
[19,0,0]
[20,0,0]
[21,0,0]
[22,0,0]
[23,0,0]
[24,0,0]
[25,1E-3,2.7000000000000001E-3]
[26,1E-3,2.7000000000000001E-3]
[27,1E-3,2.7000000000000001E-3]
[28,1E-3,2.7000000000000001E-3]
[29,1E-3,2.7000000000000001E-3]
[30,1E-3,2.7000000000000001E-3]
[31,1E-3,2.7000000000000001E-3]
[32,1E-3,2.7000000000000001E-3]
[33,1E-3,2.7000000000000001E-3]
[34,1E-3,2.7000000000000001E-3]
[35,1E-3,2.7000000000000001E-3]
[36,1E-3,2.7000000000000001E-3]
[37,1E-3,2.7000000000000001E-3]
[38,1E-3,2.7000000000000001E-3]
[39,1E-3,2.7000000000000001E-3]
[40,1E-3,2.7000000000000001E-3]
[41,1E-3,2.7000000000000001E-3]
[42,1E-3,2.7000000000000001E-3]
[43,1E-3,2.7000000000000001E-3]
[44,1E-3,2.7000000000000001E-3]
[45,1E-3,2.7000000000000001E-3]
[46,1E-3,2.7000000000000001E-3]
[47,1E-3,2.7000000000000001E-3]
[48,1E-3,2.7000000000000001E-3]
[49,1E-3,2.7000000000000001E-3]
[50,1E-3,2.7000000000000001E-3]
[51,1E-3,2.7000000000000001E-3]
[52,1E-3,2.7000000000000001E-3]
[53,1E-3,2.7000000000000001E-3]
[54,1E-3,2.7000000000000001E-3]
[55,1E-3,2.7000000000000001E-3]
[56,1E-3,2.7000000000000001E-3]
[57,1E-3,2.7000000000000001E-3]
[58,1E-3,2.7000000000000001E-3]
[59,1E-3,2.7000000000000001E-3]
[60,1E-3,2.7000000000000001E-3]
[61,1E-3,2.7000000000000001E-3]
[62,1E-3,2.7000000000000001E-3]
[63,1E-3,2.7000000000000001E-3]
[64,1E-3,2.7000000000000001E-3]
[65,1E-3,2.7000000000000001E-3]

{"sheet":"Parameter","index":1,"n_rows":17,"n_cols":4,"rows_kept":17,"cut":false,"hidden":true,"merged":[]}
["Parameter","Wert 1","Wert 2"]
["Sprache",{"$f":"u_sprache1","v":"it"}]
["Jahr",2022,null,"-> Regelt Gültigkeit des Rechners"]
["Jahr Beginn",{"$f":"DATE(B3,1,1)","v":"2022-01-01"}]
["Jahr Ende",{"$f":"DATE(B3,12,31)","v":"2022-12-31"}]
[{"$f":"CONCATENATE(\"Anzahl Tage im Jahr \",p_jahr)","v":"Anzahl Tage im Jahr 2022"},{"$f":"p_jahr_ende-p_jahr_beginn+1","v":365}]
["max. AHV-Jahresrente",28680,null,"-> Wichtig für alle Parameter"]
["min. koordinierter Lohn",{"$f":"B7*0.125","v":3585}]
["max. Koordinationsabzug",{"$f":"B7*0.875*Listen!F88","v":25095}]
["Eintrittsschwelle",{"$f":"B7*0.75*Listen!F88","v":21510}]
["max. vers. BVG Lohn",{"$f":"B7*30*Listen!F88","v":860400}]
["max. koordinierter Lohn",{"$f":"B7*2.125*Listen!F88","v":60945}]
["max massgebender AHV Lohn",{"$f":"B7*3*Listen!F88","v":86040}]
[{"$f":"CONCATENATE(\"Zins im Jahr \",p_jahr)","v":"Zins im Jahr 2022"},0.01,null,"Verzinsung Sparguthaben"]
["Minimales Alter",18]
["Pensionsalter M",65]
["Pensionsalter W",64]

{"sheet":"Listen","index":2,"n_rows":124,"n_cols":7,"rows_kept":124,"cut":false,"hidden":true,"merged":[]}
["Sprache"]
["de",1,{"$f":"VLOOKUP(u_sprache1,Listen!A2:B4,2,FALSE)+1","v":4}]
["fr",2]
["it",3]
[]
[]
["Geschlecht"]
[{"$f":"VLOOKUP(\"geschlecht1\",texte,u_sprache,FALSE)","v":"Uomo"},1,{"$f":"VLOOKUP(u_geschlecht1,A8:B9,2,FALSE)","v":1}]
[{"$f":"VLOOKUP(\"geschlecht2\",texte,u_sprache,FALSE)","v":"Donna"},2]
[]
[{"$f":"VLOOKUP(\"geschlecht1k\",texte,u_sprache,FALSE)","v":"M"},null,{"$f":"IF(u_geschlecht=1,A11,IF(u_geschlecht=2,A12,\"\"))","v":"M"}]
[{"$f":"VLOOKUP(\"geschlecht2k\",texte,u_sprache,FALSE)","v":"F"}]
[]
[]
["Basispläne"]
[{"$f":"VLOOKUP(\"planA\",texte,u_sprache,FALSE)","v":"Piano A"},1,{"$f":"VLOOKUP(u_plan1,A16:B18,2,FALSE)","v":1}]
[{"$f":"VLOOKUP(\"planB\",texte,u_sprache,FALSE)","v":"Piano B"},3]
[{"$f":"VLOOKUP(\"planC\",texte,u_sprache,FALSE)","v":"Piano C"},5]
[]
[]
["Zusatzpläne / Kaderplan"]
[{"$f":"VLOOKUP(\"plan0\",texte,u_sprache,FALSE)","v":"Senza piano supplementare"},0,{"$f":"VLOOKUP(u_zusatzplan1,A22:B26,2,FALSE)","v":0}]
[{"$f":"VLOOKUP(\"planE\",texte,u_sprache,FALSE)","v":"Piano supplementare E"},1]
[{"$f":"VLOOKUP(\"planF\",texte,u_sprache,FALSE)","v":"Piano supplementare F"},2]
[{"$f":"VLOOKUP(\"planE+\",texte,u_sprache,FALSE)","v":"Piano supplementare E+"},3]
[{"$f":"VLOOKUP(\"planF+\",texte,u_sprache,FALSE)","v":"Piano supplementare F+"},4]
[]
[]
["Koordinationsabzug"]
[{"$f":"VLOOKUP(\"mitKoA\",texte,u_sprache,FALSE)","v":"Con deduzione di coordinamento"},1,{"$f":"VLOOKUP(u_plan_koa1,A30:B31,2,FALSE)","v":1}]
[{"$f":"VLOOKUP(\"ohneKoA\",texte,u_sprache,FALSE)","v":"senza deduzione di coordinamento"},0]
[]
[]
["VK Abzug"]
[{"$f":"VLOOKUP(\"vk0\",texte,u_sprache,FALSE)","v":"Tariffa standard"},0,{"$f":"VLOOKUP(u_vkrabatt1,A35:B40,2,FALSE)","v":0}]
[{"$f":"VLOOKUP(\"vk1\",texte,u_sprache,FALSE)","v":"Tariffa dei costi di gestione 1"},1]
[{"$f":"VLOOKUP(\"vk2\",texte,u_sprache,FALSE)","v":"Tariffa dei costi di gestione 2"},2]
[{"$f":"VLOOKUP(\"vk3\",texte,u_sprache,FALSE)","v":"Tariffa dei costi di gestione 3"},3]
[{"$f":"VLOOKUP(\"vk4\",texte,u_sprache,FALSE)","v":"Tariffa dei costi di gestione 4"},4]
[{"$f":"VLOOKUP(\"vk5\",texte,u_sprache,FALSE)","v":"Tariffa dei costi di gestione 5"},5]
[]
["Texte Bestandesübersicht (für Makro)"]
[{"$f":"VLOOKUP(\"zusatz_vk\",texte,u_sprache,FALSE)","v":"Costi di gestione piano supplementare"}]
[{"$f":"VLOOKUP(\"grundbeitrag_vk\",texte,u_sprache,FALSE)","v":"Contributo di base per le spese amministrtive "}]
[{"$f":"VLOOKUP(\"prämie_betrieb\",texte,u_sprache,FALSE)","v":"Totale die contributi della società"}]
[{"$f":"VLOOKUP(\"name\",texte,u_sprache,FALSE)","v":"Nome / Cognome"}]
[{"$f":"VLOOKUP(\"jahrgang2\",texte,u_sprache,FALSE)","v":"Annata"}]
[{"$f":"VLOOKUP(\"ahvlohn_k\",texte,u_sprache,FALSE)","v":"Salario AVS"}]
[{"$f":"VLOOKUP(\"vers_lohn\",texte,u_sprache,FALSE)","v":"Salario ass. durante l’impiego"}]
[{"$f":"VLOOKUP(\"sparprämie_best\",texte,u_sprache,FALSE)","v":"Premi risparmio (%)"}]
[{"$f":"VLOOKUP(\"sparprämie2_best\",texte,u_sprache,FALSE)","v":"Premi risparmio"}]
[{"$f":"VLOOKUP(\"risikoprämie_best\",texte,u_sprache,FALSE)","v":"Premi rischio (%)"}]
[{"$f":"VLOOKUP(\"risikoprämie2_best\",texte,u_sprache,FALSE)","v":"Premi rischio"}]
[{"$f":"VLOOKUP(\"verwkosten2\",texte,u_sprache,FALSE)","v":"Costi di gestione"}]
[{"$f":"VLOOKUP(\"sifo2\",texte,u_sprache,FALSE)","v":"Fondo di garanzia"}]
[{"$f":"VLOOKUP(\"tot_prämie\",texte,u_sprache,FALSE)","v":"Totale del premio"}]
[{"$f":"VLOOKUP(\"beitrag_an\",texte,u_sprache,FALSE)","v":"Contributo del lavoratore"}]
[{"$f":"VLOOKUP(\"beitrag_an2\",texte,u_sprache,FALSE)","v":"Contributo del lavoratore"}]
[{"$f":"VLOOKUP(\"titel2\",texte,u_sprache,FALSE)","v":"Contributi della previdenza professionale"}]
[{"$f":"VLOOKUP(\"as_pencas\",texte,u_sprache,FALSE)","v":"Agrisano Pencas"}]
[{"$f":"VLOOKUP(\"as_pencas1\",texte,u_sprache,FALSE)","v":"Previdenza professionale"}]
[{"$f":"VLOOKUP(\"fusszeile\",texte,u_sprache,FALSE)","v":"Laurstrasse 10 | 5201 Brugg | Telefono  +41 (0)56 461 78 11 | Fax +41 (0)56 461 71 01\npencas@agrisano.ch | www.agrisano.ch"}]
[{"$f":"VLOOKUP(\"hinweis_zins\",texte,u_sprache,FALSE)","v":"Le supplemento per versamento posticipato non è considerato."}]
[{"$f":"VLOOKUP(\"text1\",texte,u_sprache,FALSE)","v":"Il calcolo dei contributi si basa sui dati registrati. In definitiva, è decisiva la fattura dei contributi di Agrisano Pencas, che viene redatta sulla base dei salari AVS effettivamente dichiarati."}]
[{"$f":"VLOOKUP(\"titel_hinweis\",texte,u_sprache,FALSE)","v":"Indicazione"}]
[{"$f":"VLOOKUP(\"beitrag_ag\",texte,u_sprache,FALSE)","v":"Contributo del datore di lavoro"}]
[]
["Rentenanspruch","IV-Grad","Faktor"]
["Liste Invalidität ab 2022",null,null,null,"Liste Invalidität"]
["keine Reduktion",0,1,null,{"$f":"VLOOKUP(\"auswahl_iv1\",texte,u_sprache,FALSE)","v":"Nessuna riduzione"},0,1]
[0.25,40,0.75,null,"25%",40,0.75]
[0.27500000000000002,41,0.72499999999999998,null,"50%",50,0.5]
[0.3,42,0.7,null,"75%",60,0.25]
[0.32500000000000001,43,0.67500000000000004,null,"75%",66.66,0.25]
[0.35,44,0.65,null,{"$f":"VLOOKUP(\"auswahl_iv2\",texte,u_sprache,FALSE)","v":"Nessuna LPP"},70,0]
[0.375,45,0.625]
[0.4,46,0.6,null,"Faktor",{"$f":"IF(u_ivaktiv1=0,1,VLOOKUP(u_ivgrad*100,F70:G75,2,TRUE))","v":1}]
[0.42499999999999999,47,0.57499999999999996,null,"Reduktion",{"$f":"INDEX(E70:E75,MATCH(F77,G70:G75,0))","v":"Nessuna riduzione"}]
[0.45,48,0.55000000000000004]
[0.47499999999999998,49,0.52500000000000002]
[0.5,50,0.5,null,"Eintritt AUF"]
[0.51,51,0.49,null,"alt"]
[0.52,52,0.48,null,2022]
[0.53,53,0.47]
[0.54,54,0.46]
[0.55000000000000004,55,0.45]
[0.56000000000000005,55.999999999999901,0.44]
[0.56999999999999995,56.999999999000003,0.43,null,"IV-Faktor",{"$f":"IF('Beitragsrechner IV'!G3=2022,u_ivfaktor,u_ivfaktor2)","v":1}]
[0.57999999999999996,57.999999999899998,0.42,null,"Reduktion",{"$f":"IF('Beitragsrechner IV'!G3=2022,u_ivreduktion,u_ivreduktion2)","v":"Nessuna riduzione"}]
[0.59,59,0.41]
[0.6,60,0.4]
[0.61,61,0.39]
[0.62,62,0.38]
[0.63,63,0.37]
[0.64,64,0.36]
[0.65,65,0.35]
[0.66,66,0.34]
[0.67,67,0.33]
[0.68,68,0.32]
[0.69,69,0.31]
["kein BVG",70,0]
[]
["Faktor",{"$f":"IF(u_ivaktiv1=0,1,VLOOKUP(u_ivgrad*100,B70:C101,2,TRUE))","v":1}]
["Reduktion",{"$f":"INDEX(A70:A101,MATCH(B103,Listen!C70:C101,0))","v":"keine Reduktion"}]
[]
["IV Rechner"]
[{"$f":"VLOOKUP(\"aktiv\",texte,u_sprache,FALSE)","v":"attivo"},1,{"$f":"IFERROR(IF(u_ivaktiv=A107,B107,B108),B108)","v":0}]
[{"$f":"VLOOKUP(\"nichtaktiv\",texte,u_sprache,FALSE)","v":"non attivo"},0]
[]
[]
[]
[]
["Usereingaben"]
["Vorname / Name  ",{"$f":"IF(u_ivaktiv1=0,C114,D114)","v":0},{"$f":"Beitragsrechner!D10","v":0},{"$f":"'Beitragsrechner IV'!D14","v":0}]
["AHV Nr",0,{"$f":"Beitragsrechner!D11","v":0},{"$f":"'Beitragsrechner IV'!D15","v":0}]
["Jahrgang  ",1970,{"$f":"Beitragsrechner!D12","v":1970},{"$f":"'Beitragsrechner IV'!D16","v":1988}]
["Geschlecht  ","Uomo",{"$f":"Beitragsrechner!D13","v":"Uomo"},{"$f":"'Beitragsrechner IV'!D17","v":"männlich"}]
["Basisplan","Piano A",{"$f":"Beitragsrechner!D14","v":"Piano A"},{"$f":"'Beitragsrechner IV'!D18","v":"Plan A"}]
["Koordinationsabzug","Con deduzione di coordinamento",{"$f":"Beitragsrechner!D15","v":"Con deduzione di coordinamento"},{"$f":"'Beitragsrechner IV'!D19","v":"ohne Koordinationabzug"}]
["Verwaltungskostentarif","Tariffa standard",{"$f":"Beitragsrechner!D16","v":"Tariffa standard"},{"$f":"'Beitragsrechner IV'!D20","v":"Standardtarif"}]
["Zusatzplan","Senza piano supplementare",{"$f":"Beitragsrechner!D17","v":"Senza piano supplementare"},{"$f":"'Beitragsrechner IV'!D21","v":"Zusatzplan E"}]
["Anstellungsdauer von","2022-01-01",{"$f":"Beitragsrechner!I11","v":"2022-01-01"},{"$f":"'Beitragsrechner IV'!I15","v":"2022-01-01"}]
["Anstellungsdauer bis","2022-12-31",{"$f":"Beitragsrechner!I12","v":"2022-12-31"},{"$f":"'Beitragsrechner IV'!I16","v":"2022-12-31"}]
["AHV-Lohn während der Anstellung:",86040,{"$f":"Beitragsrechner!I14","v":86040},{"$f":"'Beitragsrechner IV'!I18","v":48000}]

{"sheet":"Texte","index":3,"n_rows":100,"n_cols":4,"rows_kept":100,"cut":false,"hidden":true,"merged":[]}
["ID","Deutsch","Französisch","Italienisch"]
["titel1","Berechnung der Beiträge an die berufliche Vorsorge","Calcul des cotisations à la prévoyance professionnelle","Calcolo dei contributi a favore della previdenza professionale"]
["text1","Die Beitragsberechnung beruht auf den erfassten Daten. Massgebend ist schlussendlich die Beitragsrechnung der Agrisano Pencas, welche aufgrund der effektiv gemeldeten AHV-Löhne erstellt wird.","Le calcul des cotisations se base sur les données saisies. C'est finalement le calcul des cotisations d'Agrisano Pencas, établi sur la base des salaires AVS effectivement déclarés, qui est déterminant.","Il calcolo dei contributi si basa sui dati registrati. In definitiva, è decisiva la fattura dei contributi di Agrisano Pencas, che viene redatta sulla base dei salari AVS effettivamente dichiarati."]
["text1a","Sie beinhaltet zudem einen Zins für das nachschüssige Inkasso.","Celle-ci comprend notamment un intérêt pour paiement à terme échu.","Le supplemento per versamento posticipato è include."]
["text2","Bei Fragen zur Beitragsrechnung wenden Sie sich bitte an die Agrisano Stiftung Globalversicherung (Tel. 056 461 78 55).\nFür die Berechnung der Beiträge von (teil-)invaliden Arbeitnehmenden nehmen Sie bitte Kontakt mit der Agrisano Pencas auf (Tel. 056 461 78 11).","Pour toute question, veuillez prendre contact avec Fondation Agrisano, Aussurance globale  (Tél. 056 461 78 55).\nPour le calcul des cotisations d’employés invalides (partiels ou totaux), veuillez prendre contact avec Agrisano Pencas (Tél. 056 461 78 11).","In caso di domande sull’avviso di premio si prega di rivolgersi alla Fondazione Agrisano, Assicurazione globale (tel. 056 461 78 55).\nPer il calcolo del premio di impiegati (parzialmente) invalidi si prega di prendere contatto con Agrisano Pencas (tel. 056 461 78 11)."]
["text3","Die Versicherungspflicht gilt nur für Anstellungsverhältnisse, die für mehr als 3 Monate dauern (gilt auch, wenn das Arbeitsverhältnis zwischenzeitlich maximal 3 Monate unterbrochen wird, die Gesamtbeschäftigungsdauer aber mehr als 92 Tage beträgt).","L'obligation d'assurance s’applique uniquement aux rapports de travail qui ont été conclus pour plus de 3 mois (vaut également si la relation de travail est interrompue au maximum 3 mois, mais que la durée totale de l'emploi est de plus de 92 jours).","L’obbligo di assicurazione trova applicazione soltanto per i rapporti d’impiego che sono stati contratti per una durata superiore a 3 mesi (applicabile anche se il rapporto di lavoro viene interrotto temporaneamente per un periodo massimo di 3 mesi, ma la durata complessiva dell’occupazione è comunque superiore a 92 giorni)."]
["text_druck","Die Beitragsberechnung beruht auf den erfassten Daten. Massgebend ist schlussendlich die Beitragsrechnung der Agrisano Pencas, welche aufgrund der effektiv gemeldeten AHV-Löhne erstellt wird. Sie beinhaltet zudem einen Zins für das nachschüssige Inkasso.\nBei Fragen zur Beitragsrechnung wenden Sie sich bitte an die Agrisano Stiftung Globalversicherung (Tel. 056 461 78 55).\nFür die Berechnung der Beiträge von (teil-)invaliden Arbeitnehmenden nehmen Sie bitte Kontakt mit der Agrisano Pencas auf (Tel. 056 461 78 11).\nDie Versicherungspflicht gilt nur für Anstellungsverhältnisse, die für mehr als 3 Monate dauern (gilt auch, wenn das Arbeitsver-hältnis zwischenzeitlich maximal 3 Monate unterbrochen wird, die Gesamtbeschäftigungsdauer aber mehr als 92 Tage beträgt).","Le calcul des cotisations se base sur les données saisies. C'est finalement le calcul des cotisations d'Agrisano Pencas, établi sur la base des salaires AVS effectivement déclarés, qui est déterminant. Celle-ci comprend notamment un intérêt pour paiement à terme échu.\nPour toute question, veuillez prendre contact avec Fondation Agrisano, Aussurance globale  \nPour le calcul des cotisations d’employés invalides (partiels ou totaux), veuillez prendre contact avec Agrisano Pencas (Tél. 056 461 78 11).\nL'obligation d'assurance s’applique uniquement aux rapports de travail qui ont été conclus pour plus de 3 mois (vaut également si la relation de travail est interrompue au maximum 3 mois, mais que la durée totale de l'emploi est de plus de 92 jours).","Il calcolo dei contributi si basa sui dati registrati. In definitiva, è decisiva la fattura dei contributi di Agrisano Pencas, che viene redatta sulla base dei salari AVS effettivamente dichiarati. Le supplemento per versamento posticipato è include.\nIn caso di domande sull’avviso di premio si prega di rivolgersi alla Fondazione Agrisano, Assicurazione globale (tel. 056 461 78 55).\nPer il calcolo del premio di impiegati (parzialmente) invalidi si prega di prendere contatto con Agrisano Pencas (tel. 056 461 78 11).\nL’obbligo di assicurazione trova applicazione soltanto per i rapporti d’impiego che sono stati contratti per una durata superiore a 3 mesi (applicabile anche se il rapporto di lavoro viene interrotto temporaneamente per un periodo massimo di 3 mesi, ma la durata complessiva dell’occupazione è comunque superiore a 92 giorni)."]
["geschlecht1","männlich","masculin","Uomo"]
["geschlecht2","weiblich","feminin","Donna"]
["planA","Plan A","Plan A","Piano A"]
["planB","Plan B","Plan B","Piano B"]
["planC","Plan C","Plan C","Piano C"]
["planE","Zusatzplan E","Plan supplementaire E","Piano supplementare E"]
["planF","Zusatzplan F","Plan supplementaire F","Piano supplementare F"]
["planE+","Zusatzplan E+","Plan supplementaire E+","Piano supplementare E+"]
["planF+","Zusatzplan F+","Plan supplementaire F+","Piano supplementare F+"]
["plan0","Kein Zusatzplan","Sans plan supplementaire","Senza piano supplementare"]
["mitKoA","mit Koordinationsabzug","avec déduction de coordination","Con deduzione di coordinamento"]
["ohneKoA","ohne Koordinationabzug","sans déduction de coordination","senza deduzione di coordinamento"]
["vk0","Standardtarif","Tarif standard","Tariffa standard"]
["vk1","Verwaltungskostentarif 1","Tarif de frais administratifs 1","Tariffa dei costi di gestione 1"]
["vk2","Verwaltungskostentarif 2","Tarif de frais administratifs 2","Tariffa dei costi di gestione 2"]
["vk3","Verwaltungskostentarif 3","Tarif de frais administratifs 3","Tariffa dei costi di gestione 3"]
["vk4","Verwaltungskostentarif 4","Tarif de frais administratifs 4","Tariffa dei costi di gestione 4"]
["vk5","Verwaltungskostentarif 5","Tarif de frais administratifs 5","Tariffa dei costi di gestione 5"]
["as_pencas","Agrisano Pencas","Agrisano Pencas","Agrisano Pencas"]
["as_pencas1","Berufliche Vorsorge","Prévoyance professionnelle","Previdenza professionale"]
["person","Versicherte Person","Personne assuré","Persona assicurata "]
["name","Vorname / Name  ","Prénom / Nom","Nome / Cognome"]
["ahvnr","AHV-Nr.  ","N° AVS","N. AVS"]
["jahrgang","Jahrgang  ","Année de naissance","Anno di nascita"]
["jahrgang2","Jahrgang","Année de naissance","Annata"]
["geschlecht","Geschlecht  ","Sexe","Sesso"]
["pk","Versicherungslösung","Solution d'assurance","Soluzione assicurativa"]
["plan","Plan","Plan","Piano"]
["basisplan","Basisplan","Plan de base","Piano di base"]
["koa","Koordinationsabzug","Déduction de coordination","Deduzione di coordinamento"]
["vktarif","Verwaltungskostentarif","Tarif des frais administratifs","Tariffa die costi di gestione"]
["zusatzplan","Zusatzplan","Plan supplementaire","Piano supplementare"]
["anstellung","Anstellung","L'emploi","L'impiego"]
["jahr","Jahr","Année","Anno"]
["anstellungsdauer","Anstellungsdauer von","Durée de l'emploi du","Durata dell’impiego da"]
["anstellungsdauer_bis","Anstellungsdauer bis","Durée de l'emploi au","Durata dell’impiego a"]
["anstellungsdauer_k","Anst. von","emploi du","Impiegato da"]
["anstellungsdauer_bis_k","Anst. bis","emploi au","Impiegato a"]
["ahvlohn","AHV-Lohn während der Anstellung","Salaire AVS perçu pour toute la durée","Salario AVS percepito durante l’impiego"]
["ahvlohn_k","AHV-Lohn","Salaire AVS","Salario AVS"]
["text4","Auf Anstellungsdauer bezogen","Pour la durée de l'emploi","Per la durata dell'impiego"]
["text5","Minimal koordinierter Lohn","Salaire coordoné LPP min. perçu","Salario coord. min. durante l’impiego"]
["vers_lohn","Versicherter Lohn","Salaire assuré","Salario ass. durante l’impiego"]
["tage","Tage","Jours","Giorni"]
["hinweis1","Achtung, Sie haben einen reduzierten Verwaltungskostentarif ausgewählt.","Attention, vous avez choisi un tarif réduit pour les frais administratifs.","Attenzione, per i costi di gestione è stata selezionata una tariffa ridotta"]
["hinweis2","Dieser gilt nur nach Absprache mit der Agrisano Pencas.","Celui-ci n'est valable q'après entente avec l'Agrisano Pencas.","che trova applicazione soltanto previo accordo con Agrisano Pencas."]
["sparprämie","Sparbeitrag","Cotisation d'épargne","Premio di risparmio"]
["risikoprämie","Risikobeitrag","Cotisation de risque","Premio di rischio"]
["verwkosten","Verwaltungskosten","Frais administratifs","Costi di gestione"]
["sifo","Beitrag Sicherheitsfonds","Fonds de garantie","Contributo per il fondo di garanzia"]
["tot","Total","Totale","Totale"]
["tot_prämie","Total Beitrag","Cotisation totale","Totale del premio"]
["altersgutschrift","Altersgutschrift","Bonification de vieillesse","Accredito di vecchiaia"]
["beitrag","Beitrag","Cotisation","Contributo"]
["tabelle","Tabelle","Tableau","Tabella"]
["netto","netto","nette","netto"]
["vers_lohnes","in % vers. Lohn","% du salaire assuré","% del salario assicurato"]
["AHVLohnes","in % AHV-Lohn","% du salaire AVS","% del salario AVS"]
["franken","CHF","CHF","CHF"]
["beitrag_an_max","Maximaler Anteil des Arbeitnehmers","Cotisation maximale de l'employé","Contributo massimo del lavoratore"]
["beitrag_an","Beitrag Arbeitnehmer","Cotisation de l'employé","Contributo del lavoratore"]
["beitrag_an2","davon Anteil Arbeitnehmer","Part du salarié","Contributo del lavoratore"]
["beitrag_ag","Beitrag Arbeitgeber","Cotisation de l'employeur","Contributo del datore di lavoro"]
["prämie_betrieb","Total Beiträge Betrieb","Cotisation totale de l'exploitation","Totale die contributi della società"]
["titel_bestandesrechner","Bestandesrechner Agrisano Pencas","Calculateur de prime ","Calcolo dei contributi del portafoglio"]
["name_betrieb","Name Betrieb","Nom de","Nome"]
["adresse","Adresse","Adresse","Indirizzo"]
["sparprämie_best","Sparbeitrag %","Cotisation d'épargne (%)","Premi risparmio (%)"]
["sparprämie2_best","Sparbeitrag","Cotisation d'épargne","Premi risparmio"]
["risikoprämie_best","Risikobeitrag %","Cotisation de risque (%)","Premi rischio (%)"]
["risikoprämie2_best","Risikobeitrag","Cotisation de risque","Premi rischio"]
["verwkosten2","Verwaltungs-kosten","Frais de gestion","Costi di gestione"]
["sifo2","Sicherheits-fonds Beitrag","Fonds de sécurité","Fondo di garanzia"]
["titel2","Beitragsverzeichnis Pensionskasse","Cotisations de la prévoyance professionnelle","Contributi della previdenza professionale"]
["grundbeitrag_vk","Grundbeitrag Verwaltungskosten","Cotisation de base frais administratifs","Contributo di base per le spese amministrtive "]
["Zusatz_vk","Verwaltungskosten Zusatzplan","Frais de gestion plan supplementaire","Costi di gestione piano supplementare"]
["geschlecht1k","M","M","M"]
["geschlecht2k","W","F","F"]
["fusszeile","Laurstrasse 10 | 5201 Brugg | Telefon +41 (0)56 461 78 11 | Fax +41 (0)56 461 71 01\npencas@agrisano.ch | www.agrisano.ch","Laurstrasse 10 | 5201 Brugg | Téléphone +41 (0)56 461 78 11 | Fax +41 (0)56 461 71 01\npencas@agrisano.ch | www.agrisano.ch","Laurstrasse 10 | 5201 Brugg | Telefono  +41 (0)56 461 78 11 | Fax +41 (0)56 461 71 01\npencas@agrisano.ch | www.agrisano.ch"]
["auswahl_iv1","keine Reduktion","Pas de réduction","Nessuna riduzione"]
["auswahl_iv2","kein BVG","Pas de LPP","Nessuna LPP"]
["ivgrad","Invaliditätsgrad","Degré d'invalidité","Grado di invalidità"]
["red_koa","Reduktion Koordinationsabzug","Réduction de la déduction de coordination","Riduzione delle deduzione di coordinamento"]
["aktiv","Aktiv","actif","attivo"]
["nichtaktiv","Nicht aktiv","Non actif","non attivo"]
["hinweis_zins","Der Zins für die Nachschüssigkeit wurde nicht berücksichtigt.","Les intérêts pour le paiement à terme échu n'a pas été pris en compte.","Le supplemento per versamento posticipato non è considerato."]
["hinweis_iv","Der IV - Beitragsrechner ist aktiv! Bitte entsprechendes Tabellenblatt verwenden.","Le calculateur de cotisation AI est actif! Veuillez utiliser la feuille Excel correspondante.","Il calcolatore dei contributi IV è attivo! Utilizzare il foglio di calcolo corrispondente."]
["titel1_iv","Berechnung der Beiträge an die berufliche Vorsorge - Bei Invalidität","Calcul des cotisations à la prévoyance professionnelle - en cas d'invalidité","Calcolo dei contributi a favore della previdenza pro-fessionale"]
["titel_hinweis","Hinweise","Indication","Indicazione"]
["ivrechner","IV-Rechner","Calculateur AI","Calcolatore AI"]
["ivrechner_aktiv","IV-Rechner aktiv?","Calculateur AI actif?","Calcolatore AI attivo?"]
["hinweis_druck","Zum Drucken das Tabellenblatt \"Druck\" verwenden","Pour imprimer le tableau utiliser le  \"Imprimer\"","Per stampare la tabella utilizzare \"Stampa\""]
["hinweis_erf_bestand","Hinweis: Um invalide Personen zu berechnen, bitte den Einzelrechner verwenden.","Indication : Pour le calcul de personnes invalides, veuillez utiliser le calculateur individuel.","Nota: per il calcolo degli invalidi, utilizzare il calcolatore individuale."]

{"sheet":"Berechnung_einzeln","index":4,"n_rows":48,"n_cols":8,"rows_kept":48,"cut":false,"hidden":true,"merged":[]}
["Berechnungen"]
[]
["Anstellungsdauer",null,null,null,"Bedingungen","Standard","mit KOA"]
["Start Anstellung",{"$f":"u_anst_start","v":44562},null,null,"Jahrgang erfasst",{"$f":"IF(u_jahrgang>0,TRUE,FALSE)","v":true}]
["Ende Anstellung",{"$f":"u_anst_ende","v":44926},null,null,"Geschlecht erfasst",{"$f":"IF(u_geschlecht1=\"\",FALSE,TRUE)","v":true}]
["Anzahl Tage",{"$f":"IF(OR(B4=0,B5=0,B5-B4+1<0),1,B5-B4+1)","v":365},null,null,"Alter min erreicht",{"$f":"IF(p_jahr-p_alter_min>=u_jahrgang,TRUE,FALSE)","v":true}]
[null,null,null,null,"Unter Alter max",{"$f":"IF(AND(u_geschlecht=1,p_jahr-p_alter_max_m<=u_jahrgang),TRUE,IF(AND(u_geschlecht=2,p_jahr-p_alter_max_w<=u_jahrgang),TRUE,FALSE))","v":true}]
["Lohn",null,"mit KOA",null,"Basisplan erfasst",{"$f":"IF(u_plan1=\"\",FALSE,TRUE)","v":true}]
["AHV-Lohn während der Anstellung",{"$f":"u_lohn","v":86040},null,null,"Koa erfasst",{"$f":"IF(u_plan_koa1=\"\",FALSE,TRUE)","v":true}]
["AHV-Lohn auf Kalenderjahr hochgerechnet",{"$f":"u_lohn/b_anst_dauer*p_jahr_tage","v":86040},null,null,"Vk-Tarif erfasst",{"$f":"IF(u_vkrabatt1=\"\",FALSE,TRUE)","v":true}]
["min. koord. Lohn (auf Dauer)",{"$f":"ROUND(p_min_kolohn/p_jahr_tage*b_anst_dauer,0)","v":3585},{"$f":"ROUND(p_min_kolohn/p_jahr_tage*b_anst_dauer,0)","v":3585},null,"Tage vorhanden",{"$f":"b_anst_dauer>1","v":true}]
["eff. Koordinationabzug (auf Dauer)",{"$f":"IF(F20,ROUND(p_max_koabzug/p_jahr_tage*b_anst_dauer,0),0)","v":25095},{"$f":"ROUND(p_max_koabzug/p_jahr_tage*b_anst_dauer,0)","v":25095},null,"Lohn vorhanden",{"$f":"B9>0","v":true},null,"=> Lohn grösser 0"]
["Max. vers. Lohn BVG (auf Dauer)",{"$f":"ROUND(p_maxBVGLohn/p_jahr_tage*b_anst_dauer,2)","v":860400},{"$f":"ROUND(p_maxBVGLohn/p_jahr_tage*b_anst_dauer,2)","v":860400},null,"Über Eintrittsschwelle",{"$f":"b_lohn_jahr>p_eintrittsschwelle","v":true}]
["Max Lohn - Koordinationsabzug",{"$f":"B13-B12","v":835305},{"$f":"C13-C12","v":835305},null,"Lohn über min. Ko.lohn",{"$f":"B9>=(B11+B12)","v":true},{"$f":"B9>=(C11+C12)","v":true},"=> wenn falsch, dann KoordLohn = min. koordLohn // eigener Wert für mit/ohne Koa"]
["Koord. Lohn (auf Dauer)",{"$f":"ROUND(IF(b_grundlagen_erf,IF(Listen!F88=0,0,IF($F$15,B14,IF($F$14,u_lohn-B12,B11))),0),0)","v":60945},{"$f":"ROUND(IF(b_grundlagen_erf,IF(IF('Beitragsrechner IV'!G3=2022,u_ivfaktor=0,u_ivfaktor2=0),0,IF(F15,C14,IF(G14,u_lohn-C12,C11))),0),0)","v":60945},null,"Übertrifft max. Vers Lohn",{"$f":"b_lohn_jahr>p_maxBVGLohn","v":false}]
["überobl. vers Lohn",{"$f":"ROUND(IF(F18,b_koordLohn-p_max_kolohn/p_jahr_tage*b_anst_dauer,0),0)","v":0},{"$f":"ROUND(IF(F18,C15-p_max_kolohn/p_jahr_tage*b_anst_dauer,0),0)","v":0},null,"Grundlagen 1 erfüllt",{"$f":"AND(F4:F12)","v":true},null,"=> Alles Bedingungen erfüllt, ohne Lohn über Eintrittsschwelle"]
["BVG vers. Lohn",{"$f":"ROUND(IF(F18,C15-C16,C15),0)","v":60945},null,null,"Grundlagen erfüllt",{"$f":"AND(F13,F16)","v":true},null,"=> Grundlagen 1 und Lohn über Eintrittsschwelle"]
[null,null,null,null,"Übertrifft max. AHV Lohn",{"$f":"b_lohn_jahr>p_max_ahvlohn","v":false}]
["Beiträge Basisplan"]
["Total Beitragssatz",{"$f":"IF(b_grundlagen_erf1,VLOOKUP(u_jahrgang,pr_risiko,u_plan+u_geschlecht,FALSE)-VLOOKUP(u_vkrabatt,pr_vkrabatt,2,FALSE),0)","v":0.18611},null,null,"Plan mit Ko.abzug",{"$f":"IF(F9,IF(u_plan_koa=1,TRUE,FALSE),FALSE)","v":true}]
["Sparbeitrag Satz",{"$f":"ROUND(IF(b_grundlagen_erf1,VLOOKUP(p_jahr-u_jahrgang,pr_sparteil,u_geschlecht+1,FALSE)/(1+p_zins),0),5)","v":0.14851},null,null,"VK max",{"$f":"B27>B26","v":true}]
["Sparbeitrag",{"$f":"ROUND(IF(b_grundlagen_erf,b_koordLohn*B21,0),1)","v":9050.9}]
["Risikobeitrag Satz",{"$f":"IF(b_grundlagen_erf1,ROUND(b_prämie_tot-b_sparprämie_satz-b_vk_theo-b_sifo_satz,5),0)","v":2.24E-2},null,null,"Zusatzplan vorhanden",{"$f":"u_zusatzplan>0","v":false}]
["Risikobeitrag",{"$f":"ROUND(IF(b_grundlagen_erf,b_koordLohn*B23,0),1)","v":1365.2}]
["VK Satz theoretisch",{"$f":"VLOOKUP(u_jahrgang,pr_risiko,9,FALSE)-VLOOKUP(u_vkrabatt,pr_vkrabatt,2,FALSE)","v":1.4E-2},null,null,"IV-Rechner aktiv",{"$f":"IF(u_ivaktiv1=1,TRUE,FALSE)","v":false}]
["VK max",{"$f":"VLOOKUP(u_vkrabatt,pr_vkrabatt,3,FALSE)/p_jahr_tage*b_anst_dauer","v":360}]
["VK theoretisch",{"$f":"B25*b_koordLohn","v":853.23}]
["VK effektiv",{"$f":"ROUND(IF(b_grundlagen_erf,IF(F21,B26,B27),0),1)","v":360}]
["VK Satz effektiv",{"$f":"IFERROR(IF(b_grundlagen_erf,ROUND(b_vkeff/b_koordLohn,3),0),0)","v":6.0000000000000001E-3}]
["SiFo Satz",{"$f":"IF(b_grundlagen_erf1,VLOOKUP(u_jahrgang,pr_risiko,8,FALSE),0)","v":1.1999999999999999E-3}]
["SiFo Betrag",{"$f":"ROUND(IF(b_grundlagen_erf,B30*B17,0),1)","v":73.099999999999994}]
["Total Beitrag Satz",{"$f":"IFERROR(IF(b_grundlagen_erf,(ROUND(b_sparprämie,1)+ROUND(b_sifo,1)+ROUND(b_vkeff,1)+ROUND(b_risikoprämie,1))/b_koordLohn,\"\"),0)","v":0.1780162441545656}]
["Total Beiträge",{"$f":"IF(b_grundlagen_erf,b_prämie_tot_netto*b_koordLohn,0)","v":10849.2}]
[]
["Beiträge Zusatzplan"]
["Sparbeitrag Satz",{"$f":"IF(AND(b_grundlagen_erf,F23),ROUND(VLOOKUP(p_jahr-u_jahrgang,pr_sparteil,u_zusatzplan+3,FALSE)/(1+p_zins),5),0)","v":0}]
["Sparbeitrag",{"$f":"ROUND(IF(AND(b_grundlagen_erf,F23),B36*b_koordLohn,0),1)","v":0}]
["Risikobeitrag Satz",{"$f":"IF(u_zusatzplan>2,IF(AND(b_grundlagen_erf,F23),ROUND(VLOOKUP(p_jahr-u_jahrgang,Risikoprämie_Zusatz,u_zusatzplan-1,FALSE)/(1+p_zins),4),0),0)","v":0}]
["Risikobeitrag",{"$f":"IF(u_zusatzplan<3,0,ROUND(IF(AND(b_grundlagen_erf,F23),B38*b_koordLohn,0),1))","v":0}]
["Total Beiträge",{"$f":"SUM(B37,B39)","v":0}]
[]
["Total Basisplan und Zusatzplan"]
["Total Beiträge",{"$f":"b_prämie_ges+b_total_zusatz","v":10849.2}]
["Abeitnehmer Beiträge",{"$f":"B43/2","v":5424.6}]
["Total in % vers. Lohn",{"$f":"IF(b_koordLohn=0,0,B43/b_koordLohn)","v":0.1780162441545656}]
["Arbeitnehmer in % vers. Lohn",{"$f":"B45/2","v":8.90081220772828E-2}]
["Total in % AHV-Lohn",{"$f":"IF(B9=0,0,B43/B9)","v":0.12609483960948398}]
["Arbeitnehmer in % AHV-Lohn",{"$f":"B47/2","v":6.3047419804741989E-2}]

{"sheet":"Beitragsrechner","index":5,"n_rows":49,"n_cols":15,"rows_kept":49,"cut":false,"hidden":false,"merged":[[12,1,12,2],[12,3,12,4],[9,1,9,2],[9,3,9,4],[10,1,10,2],[10,3,10,4],[11,1,11,2],[11,3,11,4],[2,8,2,9],[5,1,5,12],[6,1,6,12],[7,1,7,12],[3,1,3,12],[2,11,2,12],[21,9,21,10],[20,9,20,10],[13,3,13,4],[14,1,14,2],[14,3,14,4],[15,1,15,2],[15,3,15,4],[13,1,13,2],[20,5,20,6],[20,7,20,8],[21,3,21,4],[21,5,21,6],[21,7,21,8],[24,1,24,2],[26,1,26,2],[16,1,16,2],[16,3,16,4],[20,3,20,4]]}
[]
[null,null,null,null,null,null,null,null,{"$f":"VLOOKUP(\"as_pencas\",texte,u_sprache,FALSE)","v":"Agrisano Pencas"}]
[null,null,null,null,null,null,null,null,{"$f":"VLOOKUP(\"as_pencas1\",texte,u_sprache,FALSE)","v":"Previdenza professionale"},null,null,{"$f":"TODAY()","v":"2022-07-21"}]
[null,{"$f":"VLOOKUP(\"titel1\",texte,u_sprache,FALSE)","v":"Calcolo dei contributi a favore della previdenza professionale"},null,null,null,null,null,null,null,null,null,null,null,null,"it"]
[]
[null,{"$f":"VLOOKUP(\"text1\",texte,u_sprache,FALSE)","v":"Il calcolo dei contributi si basa sui dati registrati. In definitiva, è decisiva la fattura dei contributi di Agrisano Pencas, che viene redatta sulla base dei salari AVS effettivamente dichiarati."}]
[null,{"$f":"VLOOKUP(\"text2\",texte,u_sprache,FALSE)","v":"In caso di domande sull’avviso di premio si prega di rivolgersi alla Fondazione Agrisano, Assicurazione globale (tel. 056 461 78 55).\nPer il calcolo del premio di impiegati (parzialmente) invalidi si prega di prendere contatto con Agrisano Pencas (tel. 056 461 78 11)."}]
[null,{"$f":"VLOOKUP(\"text3\",texte,u_sprache,FALSE)","v":"L’obbligo di assicurazione trova applicazione soltanto per i rapporti d’impiego che sono stati contratti per una durata superiore a 3 mesi (applicabile anche se il rapporto di lavoro viene interrotto temporaneamente per un periodo massimo di 3 mesi, ma la durata complessiva dell’occupazione è comunque superiore a 92 giorni)."}]
[]
[null,{"$f":"VLOOKUP(\"name\",texte,u_sprache,FALSE)","v":"Nome / Cognome"},null,null,null,null,{"$f":"VLOOKUP(\"jahr\",texte,u_sprache,FALSE)","v":"Anno"},null,{"$f":"p_jahr","v":2022},null,null,null,null,""]
[null,{"$f":"VLOOKUP(\"ahvnr\",texte,u_sprache,FALSE)","v":"N. AVS"},null,null,null,null,{"$f":"VLOOKUP(\"anstellungsdauer\",texte,u_sprache,FALSE)","v":"Durata dell’impiego da"},null,"2022-01-01"]
[null,{"$f":"VLOOKUP(\"jahrgang\",texte,u_sprache,FALSE)","v":"Anno di nascita"},null,1970,null,null,{"$f":"VLOOKUP(\"anstellungsdauer_bis\",texte,u_sprache,FALSE)","v":"Durata dell’impiego a"},null,"2022-12-31"]
[null,{"$f":"VLOOKUP(\"geschlecht\",texte,u_sprache,FALSE)","v":"Sesso"},null,"Uomo",null,null,{"$f":"VLOOKUP(\"tage\",texte,u_sprache,FALSE)","v":"Giorni"},null,{"$f":"Berechnung_einzeln!B6","v":365}]
[null,{"$f":"VLOOKUP(\"basisplan\",texte,u_sprache,FALSE)","v":"Piano di base"},null,"Piano A",null,null,{"$f":"VLOOKUP(\"ahvlohn\",texte,u_sprache,FALSE)","v":"Salario AVS percepito durante l’impiego"},null,86040]
[null,{"$f":"VLOOKUP(\"koa\",texte,u_sprache,FALSE)","v":"Deduzione di coordinamento"},null,"Con deduzione di coordinamento",null,null,{"$f":"VLOOKUP(\"text4\",texte,u_sprache,FALSE)","v":"Per la durata dell'impiego"}]
[null,{"$f":"VLOOKUP(\"vktarif\",texte,u_sprache,FALSE)","v":"Tariffa die costi di gestione"},null,"Tariffa standard",null,null,{"$f":"VLOOKUP(\"text5\",texte,u_sprache,FALSE)","v":"Salario coord. min. durante l’impiego"},null,{"$f":"Berechnung_einzeln!B11","v":3585}]
[null,{"$f":"VLOOKUP(\"zusatzplan\",texte,u_sprache,FALSE)","v":"Piano supplementare"},null,"Senza piano supplementare",null,null,{"$f":"VLOOKUP(\"koa\",texte,u_sprache,FALSE)","v":"Deduzione di coordinamento"},null,{"$f":"Berechnung_einzeln!B12","v":25095}]
[null,null,null,null,null,null,{"$f":"VLOOKUP(\"vers_lohn\",texte,u_sprache,FALSE)","v":"Salario ass. durante l’impiego"},null,{"$f":"b_koordLohn","v":60945}]
[null,{"$f":"IF(u_vkrabatt<>0,VLOOKUP(\"hinweis1\",texte,u_sprache,FALSE),\"\")","v":""}]
[null,{"$f":"IF(u_vkrabatt<>0,VLOOKUP(\"hinweis2\",texte,u_sprache,FALSE),\"\")","v":""}]
[null,null,null,{"$f":"VLOOKUP(\"sparprämie\",texte,u_sprache,FALSE)","v":"Premio di risparmio"},null,{"$f":"VLOOKUP(\"risikoprämie\",texte,u_sprache,FALSE)","v":"Premio di rischio"},null,{"$f":"VLOOKUP(\"verwkosten\",texte,u_sprache,FALSE)","v":"Costi di gestione"},null,{"$f":"VLOOKUP(\"sifo\",texte,u_sprache,FALSE)","v":"Contributo per il fondo di garanzia"},null,{"$f":"VLOOKUP(\"tot\",texte,u_sprache,FALSE)","v":"Totale"}]
[]
[null,null,null,"%",{"$f":"VLOOKUP(\"altersgutschrift\",texte,u_sprache,FALSE)","v":"Accredito di vecchiaia"},"%",{"$f":"VLOOKUP(\"beitrag\",texte,u_sprache,FALSE)","v":"Contributo"},"%",{"$f":"VLOOKUP(\"beitrag\",texte,u_sprache,FALSE)","v":"Contributo"},"%",{"$f":"VLOOKUP(\"beitrag\",texte,u_sprache,FALSE)","v":"Contributo"},{"$f":"VLOOKUP(\"beitrag\",texte,u_sprache,FALSE)","v":"Contributo"}]
[]
[null,{"$f":"VLOOKUP(\"basisplan\",texte,u_sprache,FALSE)","v":"Piano di base"},null,{"$f":"b_sparprämie_satz","v":0.14851},{"$f":"b_sparprämie","v":9050.9},{"$f":"b_risiko_satz","v":2.24E-2},{"$f":"b_risikoprämie","v":1365.2},{"$f":"Berechnung_einzeln!B29","v":6.0000000000000001E-3},{"$f":"b_vkeff","v":360},{"$f":"b_sifo_satz","v":1.1999999999999999E-3},{"$f":"b_sifo","v":73.099999999999994},{"$f":"b_prämie_ges","v":10849.2}]
[]
[null,{"$f":"VLOOKUP(\"zusatzplan\",texte,u_sprache,FALSE)","v":"Piano supplementare"},null,{"$f":"b_sparprämie_satz_z","v":0},{"$f":"b_sparprämie_z","v":0},{"$f":"Berechnung_einzeln!B38","v":0},{"$f":"Berechnung_einzeln!B39","v":0},null,null,null,null,{"$f":"b_total_zusatz","v":0}]
[]
[null,null,null,null,null,null,null,null,null,{"$f":"VLOOKUP(\"vers_Lohnes\",texte,u_sprache,FALSE)","v":"% del salario assicurato"},{"$f":"VLOOKUP(\"AHVLohnes\",texte,u_sprache,FALSE)","v":"% del salario AVS"}]
[null,null,null,null,null,null,null,{"$f":"VLOOKUP(\"tot_prämie\",texte,u_sprache,FALSE)","v":"Totale del premio"},null,{"$f":"Berechnung_einzeln!B45","v":0.1780162441545656},{"$f":"Berechnung_einzeln!B47","v":0.12609483960948398},{"$f":"Berechnung_einzeln!B43","v":10849.2}]
[]
[null,null,null,null,null,null,null,{"$f":"VLOOKUP(\"beitrag_an_max\",texte,u_sprache,FALSE)","v":"Contributo massimo del lavoratore"},null,{"$f":"Berechnung_einzeln!B46","v":8.90081220772828E-2},{"$f":"Berechnung_einzeln!B48","v":6.3047419804741989E-2},{"$f":"Berechnung_einzeln!B44","v":5424.6}]
[]
[]
[]
[]
[]
[null,null,null,null,{"$f":"VLOOKUP(\"hinweis_iv\",texte,u_sprache,FALSE)","v":"Il calcolatore dei contributi IV è attivo! Utilizzare il foglio di calcolo corrispondente."}]
[]
[]
[]
[]
[]
[]
[]
[]
[]
[]
[null,null,null,null,null,{"$f":"VLOOKUP(\"hinweis_druck\",texte,u_sprache,FALSE)","v":"Per stampare la tabella utilizzare \"Stampa\""}]

{"sheet":"Beitragsrechner IV","index":6,"n_rows":54,"n_cols":14,"rows_kept":54,"cut":false,"hidden":true,"merged":[[26,7,26,8],[26,9,26,10],[27,3,27,4],[27,5,27,6],[27,7,27,8],[27,9,27,10],[20,1,20,2],[19,3,19,4],[20,3,20,4],[26,3,26,4],[26,5,26,6],[16,1,16,2],[16,3,16,4],[18,1,18,2],[17,3,17,4],[19,1,19,2],[17,1,17,2],[18,3,18,4],[13,1,13,2],[13,3,13,4],[14,1,14,2],[14,3,14,4],[15,1,15,2],[15,3,15,4],[11,1,11,12],[6,8,6,9],[6,11,6,12],[7,1,7,12],[9,1,9,12],[10,1,10,12]]}
[]
[null,{"$f":"VLOOKUP(\"ivrechner\",texte,u_sprache,FALSE)","v":"Calcolatore AI"}]
[null,{"$f":"VLOOKUP(\"ivrechner_aktiv\",texte,u_sprache,FALSE)","v":"Calcolatore AI attivo?"},null,"Nicht aktiv",null,"Eintritt AUF","alt"]
[]
[]
[null,null,null,null,null,null,null,null,{"$f":"VLOOKUP(\"as_pencas\",texte,u_sprache,FALSE)","v":"Agrisano Pencas"}]
[null,null,null,null,null,null,null,null,{"$f":"VLOOKUP(\"as_pencas1\",texte,u_sprache,FALSE)","v":"Previdenza professionale"},null,null,{"$f":"TODAY()","v":"2022-07-21"}]
[null,{"$f":"VLOOKUP(\"titel1_iv\",texte,u_sprache,FALSE)","v":"Calcolo dei contributi a favore della previdenza pro-fessionale"}]
[]
[null,{"$f":"VLOOKUP(\"text1\",texte,u_sprache,FALSE)","v":"Il calcolo dei contributi si basa sui dati registrati. In definitiva, è decisiva la fattura dei contributi di Agrisano Pencas, che viene redatta sulla base dei salari AVS effettivamente dichiarati."}]
[null,{"$f":"VLOOKUP(\"text2\",texte,u_sprache,FALSE)","v":"In caso di domande sull’avviso di premio si prega di rivolgersi alla Fondazione Agrisano, Assicurazione globale (tel. 056 461 78 55).\nPer il calcolo del premio di impiegati (parzialmente) invalidi si prega di prendere contatto con Agrisano Pencas (tel. 056 461 78 11)."}]
[null,{"$f":"VLOOKUP(\"text3\",texte,u_sprache,FALSE)","v":"L’obbligo di assicurazione trova applicazione soltanto per i rapporti d’impiego che sono stati contratti per una durata superiore a 3 mesi (applicabile anche se il rapporto di lavoro viene interrotto temporaneamente per un periodo massimo di 3 mesi, ma la durata complessiva dell’occupazione è comunque superiore a 92 giorni)."}]
[]
[null,{"$f":"VLOOKUP(\"name\",texte,u_sprache,FALSE)","v":"Nome / Cognome"},null,null,null,null,{"$f":"VLOOKUP(\"jahr\",texte,u_sprache,FALSE)","v":"Anno"},null,{"$f":"p_jahr","v":2022},null,null,null,null,""]
[null,{"$f":"VLOOKUP(\"ahvnr\",texte,u_sprache,FALSE)","v":"N. AVS"},null,null,null,null,{"$f":"VLOOKUP(\"anstellungsdauer\",texte,u_sprache,FALSE)","v":"Durata dell’impiego da"},null,"2022-01-01"]
[null,{"$f":"VLOOKUP(\"jahrgang\",texte,u_sprache,FALSE)","v":"Anno di nascita"},null,1988,null,null,{"$f":"VLOOKUP(\"anstellungsdauer_bis\",texte,u_sprache,FALSE)","v":"Durata dell’impiego a"},null,"2022-12-31"]
[null,{"$f":"VLOOKUP(\"geschlecht\",texte,u_sprache,FALSE)","v":"Sesso"},null,"männlich",null,null,{"$f":"VLOOKUP(\"tage\",texte,u_sprache,FALSE)","v":"Giorni"},null,{"$f":"Berechnung_einzeln!B6","v":365}]
[null,{"$f":"VLOOKUP(\"basisplan\",texte,u_sprache,FALSE)","v":"Piano di base"},null,"Plan A",null,null,{"$f":"VLOOKUP(\"ahvlohn\",texte,u_sprache,FALSE)","v":"Salario AVS percepito durante l’impiego"},null,48000]
[null,{"$f":"VLOOKUP(\"koa\",texte,u_sprache,FALSE)","v":"Deduzione di coordinamento"},null,"ohne Koordinationabzug",null,null,{"$f":"VLOOKUP(\"text4\",texte,u_sprache,FALSE)","v":"Per la durata dell'impiego"}]
[null,{"$f":"VLOOKUP(\"vktarif\",texte,u_sprache,FALSE)","v":"Tariffa die costi di gestione"},null,"Standardtarif",null,null,{"$f":"VLOOKUP(\"text5\",texte,u_sprache,FALSE)","v":"Salario coord. min. durante l’impiego"},null,{"$f":"Berechnung_einzeln!B11","v":3585}]
[null,{"$f":"VLOOKUP(\"zusatzplan\",texte,u_sprache,FALSE)","v":"Piano supplementare"},null,"Zusatzplan E",null,null,{"$f":"VLOOKUP(\"ivgrad\",texte,u_sprache,FALSE)","v":"Grado di invalidità"},null,0.4]
[null,null,null,null,null,null,{"$f":"VLOOKUP(\"red_koa\",texte,u_sprache,FALSE)","v":"Riduzione delle deduzione di coordinamento"},null,{"$f":"IF(G3=\"alt\",u_ivreduktion2,u_ivreduktion)","v":"Nessuna riduzione"}]
[null,null,null,null,null,null,{"$f":"VLOOKUP(\"koa\",texte,u_sprache,FALSE)","v":"Deduzione di coordinamento"},null,{"$f":"Berechnung_einzeln!B12","v":25095}]
[null,{"$f":"IF(u_vkrabatt<>0,VLOOKUP(\"hinweis1\",texte,u_sprache,FALSE),\"\")","v":""},null,null,null,null,{"$f":"VLOOKUP(\"vers_lohn\",texte,u_sprache,FALSE)","v":"Salario ass. durante l’impiego"},null,{"$f":"Berechnung_einzeln!B15","v":60945}]
[null,{"$f":"IF(u_vkrabatt<>0,VLOOKUP(\"hinweis2\",texte,u_sprache,FALSE),\"\")","v":""}]
[]
[null,null,null,{"$f":"VLOOKUP(\"sparprämie\",texte,u_sprache,FALSE)","v":"Premio di risparmio"},null,{"$f":"VLOOKUP(\"risikoprämie\",texte,u_sprache,FALSE)","v":"Premio di rischio"},null,{"$f":"VLOOKUP(\"verwkosten\",texte,u_sprache,FALSE)","v":"Costi di gestione"},null,{"$f":"VLOOKUP(\"sifo\",texte,u_sprache,FALSE)","v":"Contributo per il fondo di garanzia"},null,{"$f":"VLOOKUP(\"tot\",texte,u_sprache,FALSE)","v":"Totale"}]
[]
[null,null,null,"%",{"$f":"VLOOKUP(\"altersgutschrift\",texte,u_sprache,FALSE)","v":"Accredito di vecchiaia"},"%",{"$f":"VLOOKUP(\"beitrag\",texte,u_sprache,FALSE)","v":"Contributo"},"%",{"$f":"VLOOKUP(\"beitrag\",texte,u_sprache,FALSE)","v":"Contributo"},"%",{"$f":"VLOOKUP(\"beitrag\",texte,u_sprache,FALSE)","v":"Contributo"},{"$f":"VLOOKUP(\"beitrag\",texte,u_sprache,FALSE)","v":"Contributo"}]
[]
[null,{"$f":"VLOOKUP(\"basisplan\",texte,u_sprache,FALSE)","v":"Piano di base"},null,{"$f":"b_sparprämie_satz","v":0.14851},{"$f":"b_sparprämie","v":9050.9},{"$f":"b_risiko_satz","v":2.24E-2},{"$f":"b_risikoprämie","v":1365.2},{"$f":"Berechnung_einzeln!B29","v":6.0000000000000001E-3},{"$f":"b_vkeff","v":360},{"$f":"b_sifo_satz","v":1.1999999999999999E-3},{"$f":"b_sifo","v":73.099999999999994},{"$f":"b_prämie_ges","v":10849.2}]
[]
[null,{"$f":"VLOOKUP(\"zusatzplan\",texte,u_sprache,FALSE)","v":"Piano supplementare"},null,{"$f":"b_sparprämie_satz_z","v":0},{"$f":"b_sparprämie_z","v":0},{"$f":"Berechnung_einzeln!B38","v":0},{"$f":"Berechnung_einzeln!B39","v":0},null,null,null,null,{"$f":"b_total_zusatz","v":0}]
[]
[null,null,null,null,null,null,null,null,null,{"$f":"VLOOKUP(\"vers_Lohnes\",texte,u_sprache,FALSE)","v":"% del salario assicurato"},{"$f":"VLOOKUP(\"AHVLohnes\",texte,u_sprache,FALSE)","v":"% del salario AVS"}]
[null,null,null,null,null,null,null,{"$f":"VLOOKUP(\"tot_prämie\",texte,u_sprache,FALSE)","v":"Totale del premio"},null,{"$f":"Berechnung_einzeln!B45","v":0.1780162441545656},{"$f":"Berechnung_einzeln!B47","v":0.12609483960948398},{"$f":"Berechnung_einzeln!B43","v":10849.2}]
[]
[null,null,null,null,null,null,null,{"$f":"VLOOKUP(\"beitrag_an_max\",texte,u_sprache,FALSE)","v":"Contributo massimo del lavoratore"},null,{"$f":"Berechnung_einzeln!B46","v":8.90081220772828E-2},{"$f":"Berechnung_einzeln!B48","v":6.3047419804741989E-2},{"$f":"Berechnung_einzeln!B44","v":5424.6}]
[]
[]
[null,null,null,null,null,null,null,{"$f":"VLOOKUP(\"beitrag_an_max\",texte,u_sprache,FALSE)","v":"Contributo massimo del lavoratore"},null,null,null,null,{"$f":"L36/2","v":5424.6}]
[]
[]
[]
[]
[]
[]
[]
[]
[]
[]
[]
[]
[null,null,"Bitte das Tabellenblatt \"Druck\" verwenden!"]

{"sheet":"Druck","index":7,"n_rows":68,"n_cols":15,"rows_kept":68,"cut":false,"hidden":false,"merged":[[7,2,7,13],[12,2,12,4],[12,5,12,6],[13,2,13,4],[13,5,13,6],[14,2,14,4],[14,5,14,6],[55,11,57,11],[23,5,23,6],[28,5,28,6],[23,2,23,4],[15,2,15,4],[15,5,15,6],[20,2,20,4],[20,5,20,6],[72,6,72,14],[66,1,66,15],[67,1,69,15],[16,2,16,4],[16,5,16,6],[38,10,38,11],[52,13,52,14],[46,10,46,11],[49,10,49,11],[42,13,42,14],[29,13,29,14],[32,10,32,11],[32,13,32,14],[35,10,35,11],[35,13,35,14],[55,10,57,10],[62,13,62,14],[45,5,45,6],[21,2,21,4],[49,13,49,14],[59,13,59,14],[46,13,46,14],[41,13,41,14],[52,10,52,11],[41,5,41,6],[22,2,22,4],[21,5,21,6],[38,13,38,14],[41,10,41,11],[42,10,42,11],[22,5,22,6],[29,10,29,11]]}
[]
[]
[]
[]
[]
[]
[]
[null,null,{"$f":"CONCATENATE(VLOOKUP(\"titel1\",texte,u_sprache,FALSE),\" \",p_jahr)","v":"Calcolo dei contributi a favore della previdenza professionale 2022"},null,null,null,null,null,null,null,null,null,null,null,{"$f":"TODAY()","v":"2022-07-21"}]
[]
[]
[null,null,{"$f":"VLOOKUP(\"person\",texte,u_sprache,FALSE)","v":"Persona assicurata "},null,null,null,null,null,null,null,{"$f":"VLOOKUP(\"anstellung\",texte,u_sprache,FALSE)","v":"L'impiego"}]
[]
[null,null,{"$f":"VLOOKUP(\"name\",texte,u_sprache,FALSE)","v":"Nome / Cognome"},null,null,{"$f":"IF(u_name=0,\"\",u_name)","v":""},null,null,null,null,{"$f":"VLOOKUP(\"jahr\",texte,u_sprache,FALSE)","v":"Anno"},null,null,null,{"$f":"p_jahr","v":2022}]
[null,null,{"$f":"VLOOKUP(\"ahvnr\",texte,u_sprache,FALSE)","v":"N. AVS"},null,null,{"$f":"IF(u_ahvnr=0,\"\",u_ahvnr)","v":""},null,null,null,null,{"$f":"VLOOKUP(\"anstellungsdauer\",texte,u_sprache,FALSE)","v":"Durata dell’impiego da"},null,null,null,{"$f":"u_anst_start","v":"2022-01-01"}]
[null,null,{"$f":"VLOOKUP(\"jahrgang\",texte,u_sprache,FALSE)","v":"Anno di nascita"},null,null,{"$f":"u_jahrgang","v":1970},null,null,null,null,{"$f":"VLOOKUP(\"anstellungsdauer_bis\",texte,u_sprache,FALSE)","v":"Durata dell’impiego a"},null,null,null,{"$f":"u_anst_ende","v":"2022-12-31"}]
[null,null,{"$f":"VLOOKUP(\"geschlecht\",texte,u_sprache,FALSE)","v":"Sesso"},null,null,{"$f":"u_geschlecht1","v":"Uomo"},null,null,null,null,{"$f":"VLOOKUP(\"ahvlohn\",texte,u_sprache,FALSE)","v":"Salario AVS percepito durante l’impiego"},null,null,null,{"$f":"u_lohn","v":86040}]
[null,null,{"$f":"VLOOKUP(\"ivgrad\",texte,u_sprache,FALSE)","v":"Grado di invalidità"},null,null,{"$f":"u_ivgrad","v":0.4}]
[]
[null,null,{"$f":"VLOOKUP(\"pk\",texte,u_sprache,FALSE)","v":"Soluzione assicurativa"},null,null,null,null,null,null,null,{"$f":"VLOOKUP(\"vers_lohn\",texte,u_sprache,FALSE)","v":"Salario ass. durante l’impiego"}]
[]
[null,null,{"$f":"VLOOKUP(\"plan\",texte,u_sprache,FALSE)","v":"Piano"},null,null,{"$f":"CONCATENATE(u_plan1,IF(u_zusatzplan =0,\"\",CONCATENATE(\"/\",u_zusatzplan1)))","v":"Piano A"},null,null,null,null,{"$f":"VLOOKUP(\"text4\",texte,u_sprache,FALSE)","v":"Per la durata dell'impiego"}]
[null,null,{"$f":"VLOOKUP(\"koa\",texte,u_sprache,FALSE)","v":"Deduzione di coordinamento"},null,null,{"$f":"u_plan_koa1","v":"Con deduzione di coordinamento"},null,null,null,null,{"$f":"VLOOKUP(\"text5\",texte,u_sprache,FALSE)","v":"Salario coord. min. durante l’impiego"},null,null,null,{"$f":"Berechnung_einzeln!$B$11","v":3585}]
[null,null,{"$f":"VLOOKUP(\"vktarif\",texte,u_sprache,FALSE)","v":"Tariffa die costi di gestione"},null,null,{"$f":"u_vkrabatt1","v":"Tariffa standard"},null,null,null,null,{"$f":"VLOOKUP(\"koa\",texte,u_sprache,FALSE)","v":"Deduzione di coordinamento"},null,null,null,{"$f":"Berechnung_einzeln!$B$12","v":25095}]
[null,null,{"$f":"VLOOKUP(\"zusatzplan\",texte,u_sprache,FALSE)","v":"Piano supplementare"},null,null,{"$f":"u_zusatzplan1","v":"Senza piano supplementare"},null,null,null,null,{"$f":"VLOOKUP(\"vers_lohn\",texte,u_sprache,FALSE)","v":"Salario ass. durante l’impiego"},null,null,null,{"$f":"b_koordLohn","v":60945}]
[null,null,null,null,null,null,null,null,null,null,{"$f":"VLOOKUP(\"red_koa\",texte,u_sprache,FALSE)","v":"Riduzione delle deduzione di coordinamento"},null,null,null,{"$f":"u_ivreduktion","v":"keine Reduktion"}]
[]
[]
[null,null,{"$f":"VLOOKUP(\"basisplan\",texte,u_sprache,FALSE)","v":"Piano di base"}]
[]
[null,null,{"$f":"VLOOKUP(\"sparprämie\",texte,u_sprache,FALSE)","v":"Premio di risparmio"},null,null,null,null,null,null,null,{"$f":"b_sparprämie_satz","v":0.14851},null,null,{"$f":"b_sparprämie","v":9050.9}]
[]
[]
[null,null,{"$f":"VLOOKUP(\"risikoprämie\",texte,u_sprache,FALSE)","v":"Premio di rischio"},null,null,null,null,null,null,null,{"$f":"Berechnung_einzeln!B23","v":2.24E-2},null,null,{"$f":"b_risikoprämie","v":1365.2}]
[]
[]
[null,null,{"$f":"VLOOKUP(\"verwkosten\",texte,u_sprache,FALSE)","v":"Costi di gestione"},null,null,null,null,null,null,null,{"$f":"Berechnung_einzeln!B29","v":6.0000000000000001E-3},null,null,{"$f":"b_vkeff","v":360}]
[]
[]
[null,null,{"$f":"VLOOKUP(\"sifo\",texte,u_sprache,FALSE)","v":"Contributo per il fondo di garanzia"},null,null,null,null,null,null,null,{"$f":"b_sifo_satz","v":1.1999999999999999E-3},null,null,{"$f":"b_sifo","v":73.099999999999994}]
[]
[]
[null,null,{"$f":"VLOOKUP(\"tot_prämie\",texte,u_sprache,FALSE)","v":"Totale del premio"},null,null,null,null,null,null,null,null,null,null,{"$f":"b_prämie_ges","v":10849.2}]
[]
[]
[null,null,{"$f":"VLOOKUP(\"zusatzplan\",texte,u_sprache,FALSE)","v":"Piano supplementare"}]
[]
[null,null,{"$f":"IF(u_zusatzplan=0,VLOOKUP(\"plan0\",texte,u_sprache,FALSE),VLOOKUP(\"sparprämie\",texte,u_sprache,FALSE))","v":"Senza piano supplementare"},null,null,null,null,null,null,null,{"$f":"Berechnung_einzeln!B36","v":0},null,null,{"$f":"Berechnung_einzeln!B37","v":0}]
[]
[]
[null,null,{"$f":"IF(u_zusatzplan=0,VLOOKUP(\"plan0\",texte,u_sprache,FALSE),VLOOKUP(\"Risikoprämie\",texte,u_sprache,FALSE))","v":"Senza piano supplementare"},null,null,null,null,null,null,null,{"$f":"Berechnung_einzeln!B38","v":0},null,null,{"$f":"Berechnung_einzeln!B39","v":0}]
[]
[]
[null,null,{"$f":"VLOOKUP(\"tot_prämie\",texte,u_sprache,FALSE)","v":"Totale del premio"},null,null,null,null,null,null,null,null,null,null,{"$f":"SUM(N47,N50)","v":0}]
[]
[]
[null,null,null,null,null,null,null,null,null,null,{"$f":"VLOOKUP(\"vers_Lohnes\",texte,u_sprache,FALSE)","v":"% del salario assicurato"},{"$f":"VLOOKUP(\"AHVLohnes\",texte,u_sprache,FALSE)","v":"% del salario AVS"}]
[]
[null,null,{"$f":"VLOOKUP(\"tot\",texte,u_sprache,FALSE)","v":"Totale"}]
[]
[null,null,{"$f":"VLOOKUP(\"tot_prämie\",texte,u_sprache,FALSE)","v":"Totale del premio"},null,null,null,null,null,null,null,{"$f":"Berechnung_einzeln!B45","v":0.1780162441545656},{"$f":"Berechnung_einzeln!B47","v":0.12609483960948398},null,{"$f":"IF(N50=\"\",N42+N47,N42+N47+N50)","v":10849.2}]
[]
[]
[null,null,{"$f":"VLOOKUP(\"beitrag_an_max\",texte,u_sprache,FALSE)","v":"Contributo massimo del lavoratore"},null,null,null,null,null,null,null,{"$f":"Berechnung_einzeln!B46","v":8.90081220772828E-2},{"$f":"Berechnung_einzeln!B48","v":6.3047419804741989E-2},null,{"$f":"N60/2","v":5424.6}]
[]
[]
[]
[null,{"$f":"IF(u_vkrabatt<>0,CONCATENATE(VLOOKUP(\"hinweis1\",texte,u_sprache,FALSE),\" \",VLOOKUP(\"hinweis2\",texte,u_sprache,FALSE)),\"\")","v":""}]
[null,{"$f":"VLOOKUP(\"text_druck\",texte,u_sprache,FALSE)","v":"Il calcolo dei contributi si basa sui dati registrati. In definitiva, è decisiva la fattura dei contributi di Agrisano Pencas, che viene redatta sulla base dei salari AVS effettivamente dichiarati. Le supplemento per versamento posticipato è include.\nIn caso di domande sull’avviso di premio si prega di rivolgersi alla Fondazione Agrisano, Assicurazione globale (tel. 056 461 78 55).\nPer il calcolo del premio di impiegati (parzialmente) invalidi si prega di prendere contatto con Agrisano Pencas (tel. 056 461 78 11).\nL’obbligo di assicurazione trova applicazione soltanto per i rapporti d’impiego che sono stati contratti per una durata superiore a 3 mesi (applicabile anche se il rapporto di lavoro viene interrotto temporaneamente per un periodo massimo di 3 mesi, ma la durata complessiva dell’occupazione è comunque superiore a 92 giorni)."}]

{"sheet":"Erfassung_Bestand","index":8,"n_rows":1013,"n_cols":7,"rows_kept":1013,"cut":false,"hidden":true,"merged":[[2,5,2,6],[3,5,3,6],[0,0,0,6]]}
[{"$f":"VLOOKUP(\"titel_bestandesrechner\",texte,u_sprache,FALSE)","v":"Calcolo dei contributi del portafoglio"}]
[]
[{"$f":"VLOOKUP(\"basisplan\",texte,u_sprache,FALSE)","v":"Piano di base"},"Plan A",null,null,{"$f":"VLOOKUP(\"name_betrieb\",texte,u_sprache,FALSE)","v":"Nome"}]
[{"$f":"VLOOKUP(\"koa\",texte,u_sprache,FALSE)","v":"Deduzione di coordinamento"},"mit Koordinationsabzug",null,null,{"$f":"VLOOKUP(\"adresse\",texte,u_sprache,FALSE)","v":"Indirizzo"}]
[{"$f":"VLOOKUP(\"zusatzplan\",texte,u_sprache,FALSE)","v":"Piano supplementare"},"Kein Zusatzplan"]
[{"$f":"VLOOKUP(\"vktarif\",texte,u_sprache,FALSE)","v":"Tariffa die costi di gestione"},"Standardtarif"]
[{"$f":"VLOOKUP(\"beitrag_an\",texte,u_sprache,FALSE)","v":"Contributo del lavoratore"},0.5]
[]
[{"$f":"VLOOKUP(\"hinweis_erf_bestand\",texte,u_sprache,FALSE)","v":"Nota: per il calcolo degli invalidi, utilizzare il calcolatore individuale."}]
[]
[{"$f":"VLOOKUP(\"name\",texte,u_sprache,FALSE)","v":"Nome / Cognome"},{"$f":"VLOOKUP(\"geschlecht\",texte,u_sprache,FALSE)","v":"Sesso"},{"$f":"VLOOKUP(\"jahrgang\",texte,u_sprache,FALSE)","v":"Anno di nascita"},{"$f":"VLOOKUP(\"anstellungsdauer_k\",texte,u_sprache,FALSE)","v":"Impiegato da"},{"$f":"VLOOKUP(\"anstellungsdauer_bis_k\",texte,u_sprache,FALSE)","v":"Impiegato a"},{"$f":"VLOOKUP(\"ahvlohn_k\",texte,u_sprache,FALSE)","v":"Salario AVS"},{"$f":"VLOOKUP(\"zusatzplan\",texte,u_sprache,FALSE)","v":"Piano supplementare"}]
[null,null,null,null,null,null,{"$f":"be_zusatzplan","v":"Kein Zusatzplan"}]
[null,null,null,null,null,null,"Kein Zusatzplan"]
[null,null,null,null,null,null,"Kein Zusatzplan"]
[null,null,null,null,null,null,"Kein Zusatzplan"]
[null,null,null,null,null,null,"Kein Zusatzplan"]
[null,null,null,null,null,null,"Kein Zusatzplan"]
[null,null,null,null,null,null,"Kein Zusatzplan"]
[null,null,null,null,null,null,"Kein Zusatzplan"]
[null,null,null,null,null,null,"Kein Zusatzplan"]
[null,null,null,null,null,null,"Kein Zusatzplan"]
[null,null,null,null,null,null,"Kein Zusatzplan"]
[null,null,null,null,null,null,"Kein Zusatzplan"]
[null,null,null,null,null,null,"Kein Zusatzplan"]
[null,null,null,null,null,null,"Kein Zusatzplan"]
[null,null,null,null,null,null,"Kein Zusatzplan"]
[null,null,null,null,null,null,"Kein Zusatzplan"]
[null,null,null,null,null,null,"Kein Zusatzplan"]
[null,null,null,null,null,null,"Kein Zusatzplan"]
[null,null,null,null,null,null,"Kein Zusatzplan"]
[null,null,null,null,null,null,"Kein Zusatzplan"]
[null,null,null,null,null,null,"Kein Zusatzplan"]
[null,null,null,null,null,null,"Kein Zusatzplan"]
[null,null,null,null,null,null,"Kein Zusatzplan"]
[null,null,null,null,null,null,"Kein Zusatzplan"]
[null,null,null,null,null,null,"Kein Zusatzplan"]
[null,null,null,null,null,null,"Kein Zusatzplan"]
[null,null,null,null,null,null,"Kein Zusatzplan"]
[null,null,null,null,null,null,"Kein Zusatzplan"]
[null,null,null,null,null,null,"Kein Zusatzplan"]
[null,null,null,null,null,null,"Kein Zusatzplan"]
[null,null,null,null,null,null,"Kein Zusatzplan"]
[null,null,null,null,null,null,"Kein Zusatzplan"]
[null,null,null,null,null,null,{"$f":"be_zusatzplan","v":"Kein Zusatzplan"}]
[null,null,null,null,null,null,"Kein Zusatzplan"]
[null,null,null,null,null,null,"Kein Zusatzplan"]
[null,null,null,null,null,null,"Kein Zusatzplan"]
[null,null,null,null,null,null,"Kein Zusatzplan"]
[null,null,null,null,null,null,"Kein Zusatzplan"]
[null,null,null,null,null,null,"Kein Zusatzplan"]
[null,null,null,null,null,null,"Kein Zusatzplan"]
[null,null,null,null,null,null,"Kein Zusatzplan"]
[null,null,null,null,null,null,"Kein Zusatzplan"]
[null,null,null,null,null,null,"Kein Zusatzplan"]
[null,null,null,null,null,null,"Kein Zusatzplan"]
[null,null,null,null,null,null,"Kein Zusatzplan"]
[null,null,null,null,null,null,"Kein Zusatzplan"]
[null,null,null,null,null,null,"Kein Zusatzplan"]
[null,null,null,null,null,null,"Kein Zusatzplan"]
[null,null,null,null,null,null,"Kein Zusatzplan"]
[null,null,null,null,null,null,"Kein Zusatzplan"]
[null,null,null,null,null,null,"Kein Zusatzplan"]
[null,null,null,null,null,null,"Kein Zusatzplan"]
[null,null,null,null,null,null,"Kein Zusatzplan"]
[null,null,null,null,null,null,"Kein Zusatzplan"]
[null,null,null,null,null,null,"Kein Zusatzplan"]
[null,null,null,null,null,null,"Kein Zusatzplan"]
[null,null,null,null,null,null,"Kein Zusatzplan"]
[null,null,null,null,null,null,"Kein Zusatzplan"]
[null,null,null,null,null,null,"Kein Zusatzplan"]
[null,null,null,null,null,null,{"$f":"be_zusatzplan","v":"Kein Zusatzplan"}]
[null,null,null,null,null,null,"Kein Zusatzplan"]
[null,null,null,null,null,null,"Kein Zusatzplan"]
[null,null,null,null,null,null,"Kein Zusatzplan"]
[null,null,null,null,null,null,"Kein Zusatzplan"]
[null,null,null,null,null,null,{"$f":"be_zusatzplan","v":"Kein Zusatzplan"}]
[null,null,null,null,null,null,"Kein Zusatzplan"]
[null,null,null,null,null,null,"Kein Zusatzplan"]
[null,null,null,null,null,null,"Kein Zusatzplan"]
[null,null,null,null,null,null,"Kein Zusatzplan"]
[null,null,null,null,null,null,"Kein Zusatzplan"]
[null,null,null,null,null,null,"Kein Zusatzplan"]
[null,null,null,null,null,null,"Kein Zusatzplan"]
[null,null,null,null,null,null,"Kein Zusatzplan"]
[null,null,null,null,null,null,"Kein Zusatzplan"]
[null,null,null,null,null,null,"Kein Zusatzplan"]
[null,null,null,null,null,null,"Kein Zusatzplan"]
[null,null,null,null,null,null,"Kein Zusatzplan"]
[null,null,null,null,null,null,"Kein Zusatzplan"]
[null,null,null,null,null,null,"Kein Zusatzplan"]
[null,null,null,null,null,null,"Kein Zusatzplan"]
[null,null,null,null,null,null,"Kein Zusatzplan"]
[null,null,null,null,null,null,"Kein Zusatzplan"]
[null,null,null,null,null,null,"Kein Zusatzplan"]
[null,null,null,null,null,null,"Kein Zusatzplan"]
[null,null,null,null,null,null,"Kein Zusatzplan"]
[null,null,null,null,null,null,"Kein Zusatzplan"]
[null,null,null,null,null,null,"Kein Zusatzplan"]
[null,null,null,null,null,null,"Kein Zusatzplan"]
[null,null,null,null,null,null,"Kein Zusatzplan"]
[null,null,null,null,null,null,"Kein Zusatzplan"]
[null,null,null,null,null,null,"Kein Zusatzplan"]
[null,null,null,null,null,null,"Kein Zusatzplan"]
[null,null,null,null,null,null,"Kein Zusatzplan"]
[null,null,null,null,null,null,"Kein Zusatzplan"]
[null,null,null,null,null,null,"Kein Zusatzplan"]
[null,null,null,null,null,null,"Kein Zusatzplan"]
[null,null,null,null,null,null,"Kein Zusatzplan"]
[null,null,null,null,null,null,"Kein Zusatzplan"]
[null,null,null,null,null,null,"Kein Zusatzplan"]
[null,null,null,null,null,null,"Kein Zusatzplan"]
[null,null,null,null,null,null,"Kein Zusatzplan"]
[null,null,null,null,null,null,"Kein Zusatzplan"]
[null,null,null,null,null,null,"Kein Zusatzplan"]
[null,null,null,null,null,null,"Kein Zusatzplan"]
[null,null,null,null,null,null,"Kein Zusatzplan"]
[null,null,null,null,null,null,"Kein Zusatzplan"]
[null,null,null,null,null,null,"Kein Zusatzplan"]
[null,null,null,null,null,null,"Kein Zusatzplan"]
[null,null,null,null,null,null,"Kein Zusatzplan"]
[null,null,null,null,null,null,"Kein Zusatzplan"]
[null,null,null,null,null,null,"Kein Zusatzplan"]
[null,null,null,null,null,null,"Kein Zusatzplan"]
[null,null,null,null,null,null,"Kein Zusatzplan"]
[null,null,null,null,null,null,"Kein Zusatzplan"]
[null,null,null,null,null,null,"Kein Zusatzplan"]
[null,null,null,null,null,null,"Kein Zusatzplan"]
[null,null,null,null,null,null,"Kein Zusatzplan"]
[null,null,null,null,null,null,"Kein Zusatzplan"]
[null,null,null,null,null,null,"Kein Zusatzplan"]
[null,null,null,null,null,null,"Kein Zusatzplan"]
[null,null,null,null,null,null,"Kein Zusatzplan"]
[null,null,null,null,null,null,"Kein Zusatzplan"]
[null,null,null,null,null,null,"Kein Zusatzplan"]
[null,null,null,null,null,null,"Kein Zusatzplan"]
[null,null,null,null,null,null,"Kein Zusatzplan"]
[null,null,null,null,null,null,"Kein Zusatzplan"]
[null,null,null,null,null,null,"Kein Zusatzplan"]
[null,null,null,null,null,null,"Kein Zusatzplan"]
[null,null,null,null,null,null,{"$f":"be_zusatzplan","v":"Kein Zusatzplan"}]
[null,null,null,null,null,null,"Kein Zusatzplan"]
[null,null,null,null,null,null,"Kein Zusatzplan"]
[null,null,null,null,null,null,"Kein Zusatzplan"]
[null,null,null,null,null,null,"Kein Zusatzplan"]
[null,null,null,null,null,null,"Kein Zusatzplan"]
[null,null,null,null,null,null,"Kein Zusatzplan"]
[null,null,null,null,null,null,"Kein Zusatzplan"]
[null,null,null,null,null,null,"Kein Zusatzplan"]
[null,null,null,null,null,null,"Kein Zusatzplan"]
[null,null,null,null,null,null,"Kein Zusatzplan"]
[null,null,null,null,null,null,"Kein Zusatzplan"]
[null,null,null,null,null,null,"Kein Zusatzplan"]
[null,null,null,null,null,null,"Kein Zusatzplan"]
[null,null,null,null,null,null,"Kein Zusatzplan"]
[null,null,null,null,null,null,"Kein Zusatzplan"]
[null,null,null,null,null,null,"Kein Zusatzplan"]
[null,null,null,null,null,null,"Kein Zusatzplan"]
[null,null,null,null,null,null,"Kein Zusatzplan"]
[null,null,null,null,null,null,"Kein Zusatzplan"]
[null,null,null,null,null,null,"Kein Zusatzplan"]
[null,null,null,null,null,null,"Kein Zusatzplan"]
[null,null,null,null,null,null,"Kein Zusatzplan"]
[null,null,null,null,null,null,"Kein Zusatzplan"]
[null,null,null,null,null,null,"Kein Zusatzplan"]
[null,null,null,null,null,null,"Kein Zusatzplan"]
[null,null,null,null,null,null,"Kein Zusatzplan"]
[null,null,null,null,null,null,"Kein Zusatzplan"]
[null,null,null,null,null,null,"Kein Zusatzplan"]
[null,null,null,null,null,null,"Kein Zusatzplan"]
[null,null,null,null,null,null,"Kein Zusatzplan"]
[null,null,null,null,null,null,"Kein Zusatzplan"]
[null,null,null,null,null,null,"Kein Zusatzplan"]
[null,null,null,null,null,null,"Kein Zusatzplan"]
[null,null,null,null,null,null,"Kein Zusatzplan"]
[null,null,null,null,null,null,"Kein Zusatzplan"]
[null,null,null,null,null,null,"Kein Zusatzplan"]
[null,null,null,null,null,null,"Kein Zusatzplan"]
[null,null,null,null,null,null,"Kein Zusatzplan"]
[null,null,null,null,null,null,"Kein Zusatzplan"]
[null,null,null,null,null,null,"Kein Zusatzplan"]
[null,null,null,null,null,null,"Kein Zusatzplan"]
[null,null,null,null,null,null,"Kein Zusatzplan"]
[null,null,null,null,null,null,"Kein Zusatzplan"]
[null,null,null,null,null,null,"Kein Zusatzplan"]
[null,null,null,null,null,null,"Kein Zusatzplan"]
[null,null,null,null,null,null,"Kein Zusatzplan"]
[null,null,null,null,null,null,"Kein Zusatzplan"]
[null,null,null,null,null,null,"Kein Zusatzplan"]
[null,null,null,null,null,null,"Kein Zusatzplan"]
[null,null,null,null,null,null,"Kein Zusatzplan"]
[null,null,null,null,null,null,"Kein Zusatzplan"]
[null,null,null,null,null,null,"Kein Zusatzplan"]
[null,null,null,null,null,null,"Kein Zusatzplan"]
[null,null,null,null,null,null,"Kein Zusatzplan"]
[null,null,null,null,null,null,"Kein Zusatzplan"]
[null,null,null,null,null,null,"Kein Zusatzplan"]
[null,null,null,null,null,null,"Kein Zusatzplan"]
[null,null,null,null,null,null,"Kein Zusatzplan"]
[null,null,null,null,null,null,"Kein Zusatzplan"]
[null,null,null,null,null,null,"Kein Zusatzplan"]
[null,null,null,null,null,null,"Kein Zusatzplan"]
[null,null,null,null,null,null,"Kein Zusatzplan"]
[null,null,null,null,null,null,"Kein Zusatzplan"]
[null,null,null,null,null,null,{"$f":"be_zusatzplan","v":"Kein Zusatzplan"}]
[null,null,null,null,null,null,"Kein Zusatzplan"]
[null,null,null,null,null,null,"Kein Zusatzplan"]
[null,null,null,null,null,null,"Kein Zusatzplan"]
[null,null,null,null,null,null,"Kein Zusatzplan"]
[null,null,null,null,null,null,"Kein Zusatzplan"]
[null,null,null,null,null,null,"Kein Zusatzplan"]
[null,null,null,null,null,null,"Kein Zusatzplan"]
[null,null,null,null,null,null,"Kein Zusatzplan"]
[null,null,null,null,null,null,"Kein Zusatzplan"]
[null,null,null,null,null,null,"Kein Zusatzplan"]
[null,null,null,null,null,null,"Kein Zusatzplan"]
[null,null,null,null,null,null,"Kein Zusatzplan"]
[null,null,null,null,null,null,"Kein Zusatzplan"]
[null,null,null,null,null,null,"Kein Zusatzplan"]
[null,null,null,null,null,null,"Kein Zusatzplan"]
[null,null,null,null,null,null,"Kein Zusatzplan"]
[null,null,null,null,null,null,"Kein Zusatzplan"]
[null,null,null,null,null,null,"Kein Zusatzplan"]
[null,null,null,null,null,null,"Kein Zusatzplan"]
[null,null,null,null,null,null,"Kein Zusatzplan"]
[null,null,null,null,null,null,"Kein Zusatzplan"]
[null,null,null,null,null,null,"Kein Zusatzplan"]
[null,null,null,null,null,null,"Kein Zusatzplan"]
[null,null,null,null,null,null,"Kein Zusatzplan"]
[null,null,null,null,null,null,"Kein Zusatzplan"]
[null,null,null,null,null,null,"Kein Zusatzplan"]
[null,null,null,null,null,null,"Kein Zusatzplan"]
[null,null,null,null,null,null,"Kein Zusatzplan"]
[null,null,null,null,null,null,"Kein Zusatzplan"]
[null,null,null,null,null,null,"Kein Zusatzplan"]
[null,null,null,null,null,null,"Kein Zusatzplan"]
[null,null,null,null,null,null,"Kein Zusatzplan"]
[null,null,null,null,null,null,"Kein Zusatzplan"]
[null,null,null,null,null,null,"Kein Zusatzplan"]
[null,null,null,null,null,null,"Kein Zusatzplan"]
[null,null,null,null,null,null,"Kein Zusatzplan"]
[null,null,null,null,null,null,"Kein Zusatzplan"]
[null,null,null,null,null,null,"Kein Zusatzplan"]
[null,null,null,null,null,null,"Kein Zusatzplan"]
[null,null,null,null,null,null,"Kein Zusatzplan"]
[null,null,null,null,null,null,"Kein Zusatzplan"]
[null,null,null,null,null,null,"Kein Zusatzplan"]
[null,null,null,null,null,null,"Kein Zusatzplan"]
[null,null,null,null,null,null,"Kein Zusatzplan"]
[null,null,null,null,null,null,"Kein Zusatzplan"]
[null,null,null,null,null,null,"Kein Zusatzplan"]
[null,null,null,null,null,null,"Kein Zusatzplan"]
[null,null,null,null,null,null,"Kein Zusatzplan"]
[null,null,null,null,null,null,"Kein Zusatzplan"]
[null,null,null,null,null,null,"Kein Zusatzplan"]
[null,null,null,null,null,null,"Kein Zusatzplan"]
[null,null,null,null,null,null,"Kein Zusatzplan"]
[null,null,null,null,null,null,"Kein Zusatzplan"]
[null,null,null,null,null,null,"Kein Zusatzplan"]
[null,null,null,null,null,null,"Kein Zusatzplan"]
[null,null,null,null,null,null,"Kein Zusatzplan"]
[null,null,null,null,null,null,"Kein Zusatzplan"]
[null,null,null,null,null,null,"Kein Zusatzplan"]
[null,null,null,null,null,null,"Kein Zusatzplan"]
[null,null,null,null,null,null,"Kein Zusatzplan"]
[null,null,null,null,null,null,"Kein Zusatzplan"]
[null,null,null,null,null,null,"Kein Zusatzplan"]
[null,null,null,null,null,null,"Kein Zusatzplan"]
[null,null,null,null,null,null,{"$f":"be_zusatzplan","v":"Kein Zusatzplan"}]
[null,null,null,null,null,null,"Kein Zusatzplan"]
[null,null,null,null,null,null,"Kein Zusatzplan"]
[null,null,null,null,null,null,"Kein Zusatzplan"]
[null,null,null,null,null,null,"Kein Zusatzplan"]
[null,null,null,null,null,null,"Kein Zusatzplan"]
[null,null,null,null,null,null,"Kein Zusatzplan"]
[null,null,null,null,null,null,"Kein Zusatzplan"]
[null,null,null,null,null,null,"Kein Zusatzplan"]
[null,null,null,null,null,null,"Kein Zusatzplan"]
[null,null,null,null,null,null,"Kein Zusatzplan"]
[null,null,null,null,null,null,"Kein Zusatzplan"]
[null,null,null,null,null,null,"Kein Zusatzplan"]
[null,null,null,null,null,null,"Kein Zusatzplan"]
[null,null,null,null,null,null,"Kein Zusatzplan"]
[null,null,null,null,null,null,"Kein Zusatzplan"]
[null,null,null,null,null,null,"Kein Zusatzplan"]
[null,null,null,null,null,null,"Kein Zusatzplan"]
[null,null,null,null,null,null,"Kein Zusatzplan"]
[null,null,null,null,null,null,"Kein Zusatzplan"]
[null,null,null,null,null,null,"Kein Zusatzplan"]
[null,null,null,null,null,null,"Kein Zusatzplan"]
[null,null,null,null,null,null,"Kein Zusatzplan"]
[null,null,null,null,null,null,"Kein Zusatzplan"]
[null,null,null,null,null,null,"Kein Zusatzplan"]
[null,null,null,null,null,null,"Kein Zusatzplan"]
[null,null,null,null,null,null,"Kein Zusatzplan"]
[null,null,null,null,null,null,"Kein Zusatzplan"]
[null,null,null,null,null,null,"Kein Zusatzplan"]
[null,null,null,null,null,null,"Kein Zusatzplan"]
[null,null,null,null,null,null,"Kein Zusatzplan"]
[null,null,null,null,null,null,"Kein Zusatzplan"]
[null,null,null,null,null,null,"Kein Zusatzplan"]
[null,null,null,null,null,null,"Kein Zusatzplan"]
[null,null,null,null,null,null,"Kein Zusatzplan"]
[null,null,null,null,null,null,"Kein Zusatzplan"]
[null,null,null,null,null,null,"Kein Zusatzplan"]
[null,null,null,null,null,null,"Kein Zusatzplan"]
[null,null,null,null,null,null,"Kein Zusatzplan"]
[null,null,null,null,null,null,"Kein Zusatzplan"]
[null,null,null,null,null,null,"Kein Zusatzplan"]
[null,null,null,null,null,null,"Kein Zusatzplan"]
[null,null,null,null,null,null,"Kein Zusatzplan"]
[null,null,null,null,null,null,"Kein Zusatzplan"]
[null,null,null,null,null,null,"Kein Zusatzplan"]
[null,null,null,null,null,null,"Kein Zusatzplan"]
[null,null,null,null,null,null,"Kein Zusatzplan"]
[null,null,null,null,null,null,"Kein Zusatzplan"]
[null,null,null,null,null,null,"Kein Zusatzplan"]
[null,null,null,null,null,null,"Kein Zusatzplan"]
[null,null,null,null,null,null,"Kein Zusatzplan"]
[null,null,null,null,null,null,"Kein Zusatzplan"]
[null,null,null,null,null,null,"Kein Zusatzplan"]
[null,null,null,null,null,null,"Kein Zusatzplan"]
[null,null,null,null,null,null,"Kein Zusatzplan"]
[null,null,null,null,null,null,"Kein Zusatzplan"]
[null,null,null,null,null,null,"Kein Zusatzplan"]
[null,null,null,null,null,null,"Kein Zusatzplan"]
[null,null,null,null,null,null,"Kein Zusatzplan"]
[null,null,null,null,null,null,"Kein Zusatzplan"]
[null,null,null,null,null,null,"Kein Zusatzplan"]
[null,null,null,null,null,null,"Kein Zusatzplan"]
[null,null,null,null,null,null,"Kein Zusatzplan"]
[null,null,null,null,null,null,"Kein Zusatzplan"]
[null,null,null,null,null,null,{"$f":"be_zusatzplan","v":"Kein Zusatzplan"}]
[null,null,null,null,null,null,"Kein Zusatzplan"]
[null,null,null,null,null,null,"Kein Zusatzplan"]
[null,null,null,null,null,null,"Kein Zusatzplan"]
[null,null,null,null,null,null,"Kein Zusatzplan"]
[null,null,null,null,null,null,"Kein Zusatzplan"]
[null,null,null,null,null,null,"Kein Zusatzplan"]
[null,null,null,null,null,null,"Kein Zusatzplan"]
[null,null,null,null,null,null,"Kein Zusatzplan"]
[null,null,null,null,null,null,"Kein Zusatzplan"]
[null,null,null,null,null,null,"Kein Zusatzplan"]
[null,null,null,null,null,null,"Kein Zusatzplan"]
[null,null,null,null,null,null,"Kein Zusatzplan"]
[null,null,null,null,null,null,"Kein Zusatzplan"]
[null,null,null,null,null,null,"Kein Zusatzplan"]
[null,null,null,null,null,null,"Kein Zusatzplan"]
[null,null,null,null,null,null,"Kein Zusatzplan"]
[null,null,null,null,null,null,"Kein Zusatzplan"]
[null,null,null,null,null,null,"Kein Zusatzplan"]
[null,null,null,null,null,null,"Kein Zusatzplan"]
[null,null,null,null,null,null,"Kein Zusatzplan"]
[null,null,null,null,null,null,"Kein Zusatzplan"]
[null,null,null,null,null,null,"Kein Zusatzplan"]
[null,null,null,null,null,null,"Kein Zusatzplan"]
[null,null,null,null,null,null,"Kein Zusatzplan"]
[null,null,null,null,null,null,"Kein Zusatzplan"]
[null,null,null,null,null,null,"Kein Zusatzplan"]
[null,null,null,null,null,null,"Kein Zusatzplan"]
[null,null,null,null,null,null,"Kein Zusatzplan"]
[null,null,null,null,null,null,"Kein Zusatzplan"]
[null,null,null,null,null,null,"Kein Zusatzplan"]
[null,null,null,null,null,null,"Kein Zusatzplan"]
[null,null,null,null,null,null,"Kein Zusatzplan"]
[null,null,null,null,null,null,"Kein Zusatzplan"]
[null,null,null,null,null,null,"Kein Zusatzplan"]
[null,null,null,null,null,null,"Kein Zusatzplan"]
[null,null,null,null,null,null,"Kein Zusatzplan"]
[null,null,null,null,null,null,"Kein Zusatzplan"]
[null,null,null,null,null,null,"Kein Zusatzplan"]
[null,null,null,null,null,null,"Kein Zusatzplan"]
[null,null,null,null,null,null,"Kein Zusatzplan"]
[null,null,null,null,null,null,"Kein Zusatzplan"]
[null,null,null,null,null,null,"Kein Zusatzplan"]
[null,null,null,null,null,null,"Kein Zusatzplan"]
[null,null,null,null,null,null,"Kein Zusatzplan"]
[null,null,null,null,null,null,"Kein Zusatzplan"]
[null,null,null,null,null,null,"Kein Zusatzplan"]
[null,null,null,null,null,null,"Kein Zusatzplan"]
[null,null,null,null,null,null,"Kein Zusatzplan"]
[null,null,null,null,null,null,"Kein Zusatzplan"]
[null,null,null,null,null,null,"Kein Zusatzplan"]
[null,null,null,null,null,null,"Kein Zusatzplan"]
[null,null,null,null,null,null,"Kein Zusatzplan"]
[null,null,null,null,null,null,"Kein Zusatzplan"]
[null,null,null,null,null,null,"Kein Zusatzplan"]
[null,null,null,null,null,null,"Kein Zusatzplan"]
[null,null,null,null,null,null,"Kein Zusatzplan"]
[null,null,null,null,null,null,"Kein Zusatzplan"]
[null,null,null,null,null,null,"Kein Zusatzplan"]
[null,null,null,null,null,null,"Kein Zusatzplan"]
[null,null,null,null,null,null,"Kein Zusatzplan"]
[null,null,null,null,null,null,"Kein Zusatzplan"]
[null,null,null,null,null,null,"Kein Zusatzplan"]
[null,null,null,null,null,null,"Kein Zusatzplan"]
[null,null,null,null,null,null,{"$f":"be_zusatzplan","v":"Kein Zusatzplan"}]
[null,null,null,null,null,null,"Kein Zusatzplan"]
[null,null,null,null,null,null,"Kein Zusatzplan"]
[null,null,null,null,null,null,"Kein Zusatzplan"]
[null,null,null,null,null,null,"Kein Zusatzplan"]
[null,null,null,null,null,null,"Kein Zusatzplan"]
[null,null,null,null,null,null,"Kein Zusatzplan"]
[null,null,null,null,null,null,"Kein Zusatzplan"]
[null,null,null,null,null,null,"Kein Zusatzplan"]
[null,null,null,null,null,null,"Kein Zusatzplan"]
[null,null,null,null,null,null,"Kein Zusatzplan"]
[null,null,null,null,null,null,"Kein Zusatzplan"]
[null,null,null,null,null,null,"Kein Zusatzplan"]
[null,null,null,null,null,null,"Kein Zusatzplan"]
[null,null,null,null,null,null,"Kein Zusatzplan"]
[null,null,null,null,null,null,"Kein Zusatzplan"]
[null,null,null,null,null,null,"Kein Zusatzplan"]
[null,null,null,null,null,null,"Kein Zusatzplan"]
[null,null,null,null,null,null,"Kein Zusatzplan"]
[null,null,null,null,null,null,"Kein Zusatzplan"]
[null,null,null,null,null,null,"Kein Zusatzplan"]
[null,null,null,null,null,null,"Kein Zusatzplan"]
[null,null,null,null,null,null,"Kein Zusatzplan"]
[null,null,null,null,null,null,"Kein Zusatzplan"]
[null,null,null,null,null,null,"Kein Zusatzplan"]
[null,null,null,null,null,null,"Kein Zusatzplan"]
[null,null,null,null,null,null,"Kein Zusatzplan"]
[null,null,null,null,null,null,"Kein Zusatzplan"]
[null,null,null,null,null,null,"Kein Zusatzplan"]
[null,null,null,null,null,null,"Kein Zusatzplan"]
[null,null,null,null,null,null,"Kein Zusatzplan"]
[null,null,null,null,null,null,"Kein Zusatzplan"]
[null,null,null,null,null,null,"Kein Zusatzplan"]
[null,null,null,null,null,null,"Kein Zusatzplan"]
[null,null,null,null,null,null,"Kein Zusatzplan"]
[null,null,null,null,null,null,"Kein Zusatzplan"]
[null,null,null,null,null,null,"Kein Zusatzplan"]
[null,null,null,null,null,null,"Kein Zusatzplan"]
[null,null,null,null,null,null,"Kein Zusatzplan"]
[null,null,null,null,null,null,"Kein Zusatzplan"]
[null,null,null,null,null,null,"Kein Zusatzplan"]
[null,null,null,null,null,null,"Kein Zusatzplan"]
[null,null,null,null,null,null,"Kein Zusatzplan"]
[null,null,null,null,null,null,"Kein Zusatzplan"]
[null,null,null,null,null,null,"Kein Zusatzplan"]
[null,null,null,null,null,null,"Kein Zusatzplan"]
[null,null,null,null,null,null,"Kein Zusatzplan"]
[null,null,null,null,null,null,"Kein Zusatzplan"]
[null,null,null,null,null,null,"Kein Zusatzplan"]
[null,null,null,null,null,null,"Kein Zusatzplan"]
[null,null,null,null,null,null,"Kein Zusatzplan"]
[null,null,null,null,null,null,"Kein Zusatzplan"]
[null,null,null,null,null,null,"Kein Zusatzplan"]
[null,null,null,null,null,null,"Kein Zusatzplan"]
[null,null,null,null,null,null,"Kein Zusatzplan"]
[null,null,null,null,null,null,"Kein Zusatzplan"]
[null,null,null,null,null,null,"Kein Zusatzplan"]
[null,null,null,null,null,null,"Kein Zusatzplan"]
[null,null,null,null,null,null,"Kein Zusatzplan"]
[null,null,null,null,null,null,"Kein Zusatzplan"]
[null,null,null,null,null,null,"Kein Zusatzplan"]
[null,null,null,null,null,null,"Kein Zusatzplan"]
[null,null,null,null,null,null,"Kein Zusatzplan"]
[null,null,null,null,null,null,"Kein Zusatzplan"]
[null,null,null,null,null,null,{"$f":"be_zusatzplan","v":"Kein Zusatzplan"}]
[null,null,null,null,null,null,"Kein Zusatzplan"]
[null,null,null,null,null,null,"Kein Zusatzplan"]
[null,null,null,null,null,null,"Kein Zusatzplan"]
[null,null,null,null,null,null,"Kein Zusatzplan"]
[null,null,null,null,null,null,"Kein Zusatzplan"]
[null,null,null,null,null,null,"Kein Zusatzplan"]
[null,null,null,null,null,null,"Kein Zusatzplan"]
[null,null,null,null,null,null,"Kein Zusatzplan"]
[null,null,null,null,null,null,"Kein Zusatzplan"]
[null,null,null,null,null,null,"Kein Zusatzplan"]
[null,null,null,null,null,null,"Kein Zusatzplan"]
[null,null,null,null,null,null,"Kein Zusatzplan"]
[null,null,null,null,null,null,"Kein Zusatzplan"]
[null,null,null,null,null,null,"Kein Zusatzplan"]
[null,null,null,null,null,null,"Kein Zusatzplan"]
[null,null,null,null,null,null,"Kein Zusatzplan"]
[null,null,null,null,null,null,"Kein Zusatzplan"]
[null,null,null,null,null,null,"Kein Zusatzplan"]
[null,null,null,null,null,null,"Kein Zusatzplan"]
[null,null,null,null,null,null,"Kein Zusatzplan"]
[null,null,null,null,null,null,"Kein Zusatzplan"]
[null,null,null,null,null,null,"Kein Zusatzplan"]
[null,null,null,null,null,null,"Kein Zusatzplan"]
[null,null,null,null,null,null,"Kein Zusatzplan"]
[null,null,null,null,null,null,"Kein Zusatzplan"]
[null,null,null,null,null,null,"Kein Zusatzplan"]
[null,null,null,null,null,null,"Kein Zusatzplan"]
[null,null,null,null,null,null,"Kein Zusatzplan"]
[null,null,null,null,null,null,"Kein Zusatzplan"]
[null,null,null,null,null,null,"Kein Zusatzplan"]
[null,null,null,null,null,null,"Kein Zusatzplan"]
[null,null,null,null,null,null,"Kein Zusatzplan"]
[null,null,null,null,null,null,"Kein Zusatzplan"]
[null,null,null,null,null,null,"Kein Zusatzplan"]
[null,null,null,null,null,null,"Kein Zusatzplan"]
[null,null,null,null,null,null,"Kein Zusatzplan"]
[null,null,null,null,null,null,"Kein Zusatzplan"]
[null,null,null,null,null,null,"Kein Zusatzplan"]
[null,null,null,null,null,null,"Kein Zusatzplan"]
[null,null,null,null,null,null,"Kein Zusatzplan"]
[null,null,null,null,null,null,"Kein Zusatzplan"]
[null,null,null,null,null,null,"Kein Zusatzplan"]
[null,null,null,null,null,null,"Kein Zusatzplan"]
[null,null,null,null,null,null,"Kein Zusatzplan"]
[null,null,null,null,null,null,"Kein Zusatzplan"]
[null,null,null,null,null,null,"Kein Zusatzplan"]
[null,null,null,null,null,null,"Kein Zusatzplan"]
[null,null,null,null,null,null,"Kein Zusatzplan"]
[null,null,null,null,null,null,"Kein Zusatzplan"]
[null,null,null,null,null,null,"Kein Zusatzplan"]
[null,null,null,null,null,null,"Kein Zusatzplan"]
[null,null,null,null,null,null,"Kein Zusatzplan"]
[null,null,null,null,null,null,"Kein Zusatzplan"]
[null,null,null,null,null,null,"Kein Zusatzplan"]
[null,null,null,null,null,null,"Kein Zusatzplan"]
[null,null,null,null,null,null,"Kein Zusatzplan"]
[null,null,null,null,null,null,"Kein Zusatzplan"]
[null,null,null,null,null,null,"Kein Zusatzplan"]
[null,null,null,null,null,null,"Kein Zusatzplan"]
[null,null,null,null,null,null,"Kein Zusatzplan"]
[null,null,null,null,null,null,"Kein Zusatzplan"]
[null,null,null,null,null,null,"Kein Zusatzplan"]
[null,null,null,null,null,null,"Kein Zusatzplan"]
[null,null,null,null,null,null,{"$f":"be_zusatzplan","v":"Kein Zusatzplan"}]
[null,null,null,null,null,null,"Kein Zusatzplan"]
[null,null,null,null,null,null,"Kein Zusatzplan"]
[null,null,null,null,null,null,"Kein Zusatzplan"]
[null,null,null,null,null,null,"Kein Zusatzplan"]
[null,null,null,null,null,null,"Kein Zusatzplan"]
[null,null,null,null,null,null,"Kein Zusatzplan"]
[null,null,null,null,null,null,"Kein Zusatzplan"]
[null,null,null,null,null,null,"Kein Zusatzplan"]
[null,null,null,null,null,null,"Kein Zusatzplan"]
[null,null,null,null,null,null,"Kein Zusatzplan"]
[null,null,null,null,null,null,"Kein Zusatzplan"]
[null,null,null,null,null,null,"Kein Zusatzplan"]
[null,null,null,null,null,null,"Kein Zusatzplan"]
[null,null,null,null,null,null,"Kein Zusatzplan"]
[null,null,null,null,null,null,"Kein Zusatzplan"]
[null,null,null,null,null,null,"Kein Zusatzplan"]
[null,null,null,null,null,null,"Kein Zusatzplan"]
[null,null,null,null,null,null,"Kein Zusatzplan"]
[null,null,null,null,null,null,"Kein Zusatzplan"]
[null,null,null,null,null,null,"Kein Zusatzplan"]
[null,null,null,null,null,null,"Kein Zusatzplan"]
[null,null,null,null,null,null,"Kein Zusatzplan"]
[null,null,null,null,null,null,"Kein Zusatzplan"]
[null,null,null,null,null,null,"Kein Zusatzplan"]
[null,null,null,null,null,null,"Kein Zusatzplan"]
[null,null,null,null,null,null,"Kein Zusatzplan"]
[null,null,null,null,null,null,"Kein Zusatzplan"]
[null,null,null,null,null,null,"Kein Zusatzplan"]
[null,null,null,null,null,null,"Kein Zusatzplan"]
[null,null,null,null,null,null,"Kein Zusatzplan"]
[null,null,null,null,null,null,"Kein Zusatzplan"]
[null,null,null,null,null,null,"Kein Zusatzplan"]
[null,null,null,null,null,null,"Kein Zusatzplan"]
[null,null,null,null,null,null,"Kein Zusatzplan"]
[null,null,null,null,null,null,"Kein Zusatzplan"]
[null,null,null,null,null,null,"Kein Zusatzplan"]
[null,null,null,null,null,null,"Kein Zusatzplan"]
[null,null,null,null,null,null,"Kein Zusatzplan"]
[null,null,null,null,null,null,"Kein Zusatzplan"]
[null,null,null,null,null,null,"Kein Zusatzplan"]
[null,null,null,null,null,null,"Kein Zusatzplan"]
[null,null,null,null,null,null,"Kein Zusatzplan"]
[null,null,null,null,null,null,"Kein Zusatzplan"]
[null,null,null,null,null,null,"Kein Zusatzplan"]
[null,null,null,null,null,null,"Kein Zusatzplan"]
[null,null,null,null,null,null,"Kein Zusatzplan"]
[null,null,null,null,null,null,"Kein Zusatzplan"]
[null,null,null,null,null,null,"Kein Zusatzplan"]
[null,null,null,null,null,null,"Kein Zusatzplan"]
[null,null,null,null,null,null,"Kein Zusatzplan"]
[null,null,null,null,null,null,"Kein Zusatzplan"]
[null,null,null,null,null,null,"Kein Zusatzplan"]
[null,null,null,null,null,null,"Kein Zusatzplan"]
[null,null,null,null,null,null,"Kein Zusatzplan"]
[null,null,null,null,null,null,"Kein Zusatzplan"]
[null,null,null,null,null,null,"Kein Zusatzplan"]
[null,null,null,null,null,null,"Kein Zusatzplan"]
[null,null,null,null,null,null,"Kein Zusatzplan"]
[null,null,null,null,null,null,"Kein Zusatzplan"]
[null,null,null,null,null,null,"Kein Zusatzplan"]
[null,null,null,null,null,null,"Kein Zusatzplan"]
[null,null,null,null,null,null,"Kein Zusatzplan"]
[null,null,null,null,null,null,"Kein Zusatzplan"]
[null,null,null,null,null,null,{"$f":"be_zusatzplan","v":"Kein Zusatzplan"}]
[null,null,null,null,null,null,"Kein Zusatzplan"]
[null,null,null,null,null,null,"Kein Zusatzplan"]
[null,null,null,null,null,null,"Kein Zusatzplan"]
[null,null,null,null,null,null,"Kein Zusatzplan"]
[null,null,null,null,null,null,"Kein Zusatzplan"]
[null,null,null,null,null,null,"Kein Zusatzplan"]
[null,null,null,null,null,null,"Kein Zusatzplan"]
[null,null,null,null,null,null,"Kein Zusatzplan"]
[null,null,null,null,null,null,"Kein Zusatzplan"]
[null,null,null,null,null,null,"Kein Zusatzplan"]
[null,null,null,null,null,null,"Kein Zusatzplan"]
[null,null,null,null,null,null,"Kein Zusatzplan"]
[null,null,null,null,null,null,"Kein Zusatzplan"]
[null,null,null,null,null,null,"Kein Zusatzplan"]
[null,null,null,null,null,null,"Kein Zusatzplan"]
[null,null,null,null,null,null,"Kein Zusatzplan"]
[null,null,null,null,null,null,"Kein Zusatzplan"]
[null,null,null,null,null,null,"Kein Zusatzplan"]
[null,null,null,null,null,null,"Kein Zusatzplan"]
[null,null,null,null,null,null,"Kein Zusatzplan"]
[null,null,null,null,null,null,"Kein Zusatzplan"]
[null,null,null,null,null,null,"Kein Zusatzplan"]
[null,null,null,null,null,null,"Kein Zusatzplan"]
[null,null,null,null,null,null,"Kein Zusatzplan"]
[null,null,null,null,null,null,"Kein Zusatzplan"]
[null,null,null,null,null,null,"Kein Zusatzplan"]
[null,null,null,null,null,null,"Kein Zusatzplan"]
[null,null,null,null,null,null,"Kein Zusatzplan"]
[null,null,null,null,null,null,"Kein Zusatzplan"]
[null,null,null,null,null,null,"Kein Zusatzplan"]
[null,null,null,null,null,null,"Kein Zusatzplan"]
[null,null,null,null,null,null,"Kein Zusatzplan"]
[null,null,null,null,null,null,"Kein Zusatzplan"]
[null,null,null,null,null,null,"Kein Zusatzplan"]
[null,null,null,null,null,null,"Kein Zusatzplan"]
[null,null,null,null,null,null,"Kein Zusatzplan"]
[null,null,null,null,null,null,"Kein Zusatzplan"]
[null,null,null,null,null,null,"Kein Zusatzplan"]
[null,null,null,null,null,null,"Kein Zusatzplan"]
[null,null,null,null,null,null,"Kein Zusatzplan"]
[null,null,null,null,null,null,"Kein Zusatzplan"]
[null,null,null,null,null,null,"Kein Zusatzplan"]
[null,null,null,null,null,null,"Kein Zusatzplan"]
[null,null,null,null,null,null,"Kein Zusatzplan"]
[null,null,null,null,null,null,"Kein Zusatzplan"]
[null,null,null,null,null,null,"Kein Zusatzplan"]
[null,null,null,null,null,null,"Kein Zusatzplan"]
[null,null,null,null,null,null,"Kein Zusatzplan"]
[null,null,null,null,null,null,"Kein Zusatzplan"]
[null,null,null,null,null,null,"Kein Zusatzplan"]
[null,null,null,null,null,null,"Kein Zusatzplan"]
[null,null,null,null,null,null,"Kein Zusatzplan"]
[null,null,null,null,null,null,"Kein Zusatzplan"]
[null,null,null,null,null,null,"Kein Zusatzplan"]
[null,null,null,null,null,null,"Kein Zusatzplan"]
[null,null,null,null,null,null,"Kein Zusatzplan"]
[null,null,null,null,null,null,"Kein Zusatzplan"]
[null,null,null,null,null,null,"Kein Zusatzplan"]
[null,null,null,null,null,null,"Kein Zusatzplan"]
[null,null,null,null,null,null,"Kein Zusatzplan"]
[null,null,null,null,null,null,"Kein Zusatzplan"]
[null,null,null,null,null,null,"Kein Zusatzplan"]
[null,null,null,null,null,null,"Kein Zusatzplan"]
[null,null,null,null,null,null,{"$f":"be_zusatzplan","v":"Kein Zusatzplan"}]
[null,null,null,null,null,null,"Kein Zusatzplan"]
[null,null,null,null,null,null,"Kein Zusatzplan"]
[null,null,null,null,null,null,"Kein Zusatzplan"]
[null,null,null,null,null,null,"Kein Zusatzplan"]
[null,null,null,null,null,null,"Kein Zusatzplan"]
[null,null,null,null,null,null,"Kein Zusatzplan"]
[null,null,null,null,null,null,"Kein Zusatzplan"]
[null,null,null,null,null,null,"Kein Zusatzplan"]
[null,null,null,null,null,null,"Kein Zusatzplan"]
[null,null,null,null,null,null,"Kein Zusatzplan"]
[null,null,null,null,null,null,"Kein Zusatzplan"]
[null,null,null,null,null,null,"Kein Zusatzplan"]
[null,null,null,null,null,null,"Kein Zusatzplan"]
[null,null,null,null,null,null,"Kein Zusatzplan"]
[null,null,null,null,null,null,"Kein Zusatzplan"]
[null,null,null,null,null,null,"Kein Zusatzplan"]
[null,null,null,null,null,null,"Kein Zusatzplan"]
[null,null,null,null,null,null,"Kein Zusatzplan"]
[null,null,null,null,null,null,"Kein Zusatzplan"]
[null,null,null,null,null,null,"Kein Zusatzplan"]
[null,null,null,null,null,null,"Kein Zusatzplan"]
[null,null,null,null,null,null,"Kein Zusatzplan"]
[null,null,null,null,null,null,"Kein Zusatzplan"]
[null,null,null,null,null,null,"Kein Zusatzplan"]
[null,null,null,null,null,null,"Kein Zusatzplan"]
[null,null,null,null,null,null,"Kein Zusatzplan"]
[null,null,null,null,null,null,"Kein Zusatzplan"]
[null,null,null,null,null,null,"Kein Zusatzplan"]
[null,null,null,null,null,null,"Kein Zusatzplan"]
[null,null,null,null,null,null,"Kein Zusatzplan"]
[null,null,null,null,null,null,"Kein Zusatzplan"]
[null,null,null,null,null,null,"Kein Zusatzplan"]
[null,null,null,null,null,null,"Kein Zusatzplan"]
[null,null,null,null,null,null,"Kein Zusatzplan"]
[null,null,null,null,null,null,"Kein Zusatzplan"]
[null,null,null,null,null,null,"Kein Zusatzplan"]
[null,null,null,null,null,null,"Kein Zusatzplan"]
[null,null,null,null,null,null,"Kein Zusatzplan"]
[null,null,null,null,null,null,"Kein Zusatzplan"]
[null,null,null,null,null,null,"Kein Zusatzplan"]
[null,null,null,null,null,null,"Kein Zusatzplan"]
[null,null,null,null,null,null,"Kein Zusatzplan"]
[null,null,null,null,null,null,"Kein Zusatzplan"]
[null,null,null,null,null,null,"Kein Zusatzplan"]
[null,null,null,null,null,null,"Kein Zusatzplan"]
[null,null,null,null,null,null,"Kein Zusatzplan"]
[null,null,null,null,null,null,"Kein Zusatzplan"]
[null,null,null,null,null,null,"Kein Zusatzplan"]
[null,null,null,null,null,null,"Kein Zusatzplan"]
[null,null,null,null,null,null,"Kein Zusatzplan"]
[null,null,null,null,null,null,"Kein Zusatzplan"]
[null,null,null,null,null,null,"Kein Zusatzplan"]
[null,null,null,null,null,null,"Kein Zusatzplan"]
[null,null,null,null,null,null,"Kein Zusatzplan"]
[null,null,null,null,null,null,"Kein Zusatzplan"]
[null,null,null,null,null,null,"Kein Zusatzplan"]
[null,null,null,null,null,null,"Kein Zusatzplan"]
[null,null,null,null,null,null,"Kein Zusatzplan"]
[null,null,null,null,null,null,"Kein Zusatzplan"]
[null,null,null,null,null,null,"Kein Zusatzplan"]
[null,null,null,null,null,null,"Kein Zusatzplan"]
[null,null,null,null,null,null,"Kein Zusatzplan"]
[null,null,null,null,null,null,"Kein Zusatzplan"]
[null,null,null,null,null,null,{"$f":"be_zusatzplan","v":"Kein Zusatzplan"}]
[null,null,null,null,null,null,"Kein Zusatzplan"]
[null,null,null,null,null,null,"Kein Zusatzplan"]
[null,null,null,null,null,null,"Kein Zusatzplan"]
[null,null,null,null,null,null,"Kein Zusatzplan"]
[null,null,null,null,null,null,"Kein Zusatzplan"]
[null,null,null,null,null,null,"Kein Zusatzplan"]
[null,null,null,null,null,null,"Kein Zusatzplan"]
[null,null,null,null,null,null,"Kein Zusatzplan"]
[null,null,null,null,null,null,"Kein Zusatzplan"]
[null,null,null,null,null,null,"Kein Zusatzplan"]
[null,null,null,null,null,null,"Kein Zusatzplan"]
[null,null,null,null,null,null,"Kein Zusatzplan"]
[null,null,null,null,null,null,"Kein Zusatzplan"]
[null,null,null,null,null,null,"Kein Zusatzplan"]
[null,null,null,null,null,null,"Kein Zusatzplan"]
[null,null,null,null,null,null,"Kein Zusatzplan"]
[null,null,null,null,null,null,"Kein Zusatzplan"]
[null,null,null,null,null,null,"Kein Zusatzplan"]
[null,null,null,null,null,null,"Kein Zusatzplan"]
[null,null,null,null,null,null,"Kein Zusatzplan"]
[null,null,null,null,null,null,"Kein Zusatzplan"]
[null,null,null,null,null,null,"Kein Zusatzplan"]
[null,null,null,null,null,null,"Kein Zusatzplan"]
[null,null,null,null,null,null,"Kein Zusatzplan"]
[null,null,null,null,null,null,"Kein Zusatzplan"]
[null,null,null,null,null,null,"Kein Zusatzplan"]
[null,null,null,null,null,null,"Kein Zusatzplan"]
[null,null,null,null,null,null,"Kein Zusatzplan"]
[null,null,null,null,null,null,"Kein Zusatzplan"]
[null,null,null,null,null,null,"Kein Zusatzplan"]
[null,null,null,null,null,null,"Kein Zusatzplan"]
[null,null,null,null,null,null,"Kein Zusatzplan"]
[null,null,null,null,null,null,"Kein Zusatzplan"]
[null,null,null,null,null,null,"Kein Zusatzplan"]
[null,null,null,null,null,null,"Kein Zusatzplan"]
[null,null,null,null,null,null,"Kein Zusatzplan"]
[null,null,null,null,null,null,"Kein Zusatzplan"]
[null,null,null,null,null,null,"Kein Zusatzplan"]
[null,null,null,null,null,null,"Kein Zusatzplan"]
[null,null,null,null,null,null,"Kein Zusatzplan"]
[null,null,null,null,null,null,"Kein Zusatzplan"]
[null,null,null,null,null,null,"Kein Zusatzplan"]
[null,null,null,null,null,null,"Kein Zusatzplan"]
[null,null,null,null,null,null,"Kein Zusatzplan"]
[null,null,null,null,null,null,"Kein Zusatzplan"]
[null,null,null,null,null,null,"Kein Zusatzplan"]
[null,null,null,null,null,null,"Kein Zusatzplan"]
[null,null,null,null,null,null,"Kein Zusatzplan"]
[null,null,null,null,null,null,"Kein Zusatzplan"]
[null,null,null,null,null,null,"Kein Zusatzplan"]
[null,null,null,null,null,null,"Kein Zusatzplan"]
[null,null,null,null,null,null,"Kein Zusatzplan"]
[null,null,null,null,null,null,"Kein Zusatzplan"]
[null,null,null,null,null,null,"Kein Zusatzplan"]
[null,null,null,null,null,null,"Kein Zusatzplan"]
[null,null,null,null,null,null,"Kein Zusatzplan"]
[null,null,null,null,null,null,"Kein Zusatzplan"]
[null,null,null,null,null,null,"Kein Zusatzplan"]
[null,null,null,null,null,null,"Kein Zusatzplan"]
[null,null,null,null,null,null,"Kein Zusatzplan"]
[null,null,null,null,null,null,"Kein Zusatzplan"]
[null,null,null,null,null,null,"Kein Zusatzplan"]
[null,null,null,null,null,null,"Kein Zusatzplan"]
[null,null,null,null,null,null,{"$f":"be_zusatzplan","v":"Kein Zusatzplan"}]
[null,null,null,null,null,null,"Kein Zusatzplan"]
[null,null,null,null,null,null,"Kein Zusatzplan"]
[null,null,null,null,null,null,"Kein Zusatzplan"]
[null,null,null,null,null,null,"Kein Zusatzplan"]
[null,null,null,null,null,null,"Kein Zusatzplan"]
[null,null,null,null,null,null,"Kein Zusatzplan"]
[null,null,null,null,null,null,"Kein Zusatzplan"]
[null,null,null,null,null,null,"Kein Zusatzplan"]
[null,null,null,null,null,null,"Kein Zusatzplan"]
[null,null,null,null,null,null,"Kein Zusatzplan"]
[null,null,null,null,null,null,"Kein Zusatzplan"]
[null,null,null,null,null,null,"Kein Zusatzplan"]
[null,null,null,null,null,null,"Kein Zusatzplan"]
[null,null,null,null,null,null,"Kein Zusatzplan"]
[null,null,null,null,null,null,"Kein Zusatzplan"]
[null,null,null,null,null,null,"Kein Zusatzplan"]
[null,null,null,null,null,null,"Kein Zusatzplan"]
[null,null,null,null,null,null,"Kein Zusatzplan"]
[null,null,null,null,null,null,"Kein Zusatzplan"]
[null,null,null,null,null,null,"Kein Zusatzplan"]
[null,null,null,null,null,null,"Kein Zusatzplan"]
[null,null,null,null,null,null,"Kein Zusatzplan"]
[null,null,null,null,null,null,"Kein Zusatzplan"]
[null,null,null,null,null,null,"Kein Zusatzplan"]
[null,null,null,null,null,null,"Kein Zusatzplan"]
[null,null,null,null,null,null,"Kein Zusatzplan"]
[null,null,null,null,null,null,"Kein Zusatzplan"]
[null,null,null,null,null,null,"Kein Zusatzplan"]
[null,null,null,null,null,null,"Kein Zusatzplan"]
[null,null,null,null,null,null,"Kein Zusatzplan"]
[null,null,null,null,null,null,"Kein Zusatzplan"]
[null,null,null,null,null,null,"Kein Zusatzplan"]
[null,null,null,null,null,null,"Kein Zusatzplan"]
[null,null,null,null,null,null,"Kein Zusatzplan"]
[null,null,null,null,null,null,"Kein Zusatzplan"]
[null,null,null,null,null,null,"Kein Zusatzplan"]
[null,null,null,null,null,null,"Kein Zusatzplan"]
[null,null,null,null,null,null,"Kein Zusatzplan"]
[null,null,null,null,null,null,"Kein Zusatzplan"]
[null,null,null,null,null,null,"Kein Zusatzplan"]
[null,null,null,null,null,null,"Kein Zusatzplan"]
[null,null,null,null,null,null,"Kein Zusatzplan"]
[null,null,null,null,null,null,"Kein Zusatzplan"]
[null,null,null,null,null,null,"Kein Zusatzplan"]
[null,null,null,null,null,null,"Kein Zusatzplan"]
[null,null,null,null,null,null,"Kein Zusatzplan"]
[null,null,null,null,null,null,"Kein Zusatzplan"]
[null,null,null,null,null,null,"Kein Zusatzplan"]
[null,null,null,null,null,null,"Kein Zusatzplan"]
[null,null,null,null,null,null,"Kein Zusatzplan"]
[null,null,null,null,null,null,"Kein Zusatzplan"]
[null,null,null,null,null,null,"Kein Zusatzplan"]
[null,null,null,null,null,null,"Kein Zusatzplan"]
[null,null,null,null,null,null,"Kein Zusatzplan"]
[null,null,null,null,null,null,"Kein Zusatzplan"]
[null,null,null,null,null,null,"Kein Zusatzplan"]
[null,null,null,null,null,null,"Kein Zusatzplan"]
[null,null,null,null,null,null,"Kein Zusatzplan"]
[null,null,null,null,null,null,"Kein Zusatzplan"]
[null,null,null,null,null,null,"Kein Zusatzplan"]
[null,null,null,null,null,null,"Kein Zusatzplan"]
[null,null,null,null,null,null,"Kein Zusatzplan"]
[null,null,null,null,null,null,"Kein Zusatzplan"]
[null,null,null,null,null,null,{"$f":"be_zusatzplan","v":"Kein Zusatzplan"}]
[null,null,null,null,null,null,"Kein Zusatzplan"]
[null,null,null,null,null,null,"Kein Zusatzplan"]
[null,null,null,null,null,null,"Kein Zusatzplan"]
[null,null,null,null,null,null,"Kein Zusatzplan"]
[null,null,null,null,null,null,"Kein Zusatzplan"]
[null,null,null,null,null,null,"Kein Zusatzplan"]
[null,null,null,null,null,null,"Kein Zusatzplan"]
[null,null,null,null,null,null,"Kein Zusatzplan"]
[null,null,null,null,null,null,"Kein Zusatzplan"]
[null,null,null,null,null,null,"Kein Zusatzplan"]
[null,null,null,null,null,null,"Kein Zusatzplan"]
[null,null,null,null,null,null,"Kein Zusatzplan"]
[null,null,null,null,null,null,"Kein Zusatzplan"]
[null,null,null,null,null,null,"Kein Zusatzplan"]
[null,null,null,null,null,null,"Kein Zusatzplan"]
[null,null,null,null,null,null,"Kein Zusatzplan"]
[null,null,null,null,null,null,"Kein Zusatzplan"]
[null,null,null,null,null,null,"Kein Zusatzplan"]
[null,null,null,null,null,null,"Kein Zusatzplan"]
[null,null,null,null,null,null,"Kein Zusatzplan"]
[null,null,null,null,null,null,"Kein Zusatzplan"]
[null,null,null,null,null,null,"Kein Zusatzplan"]
[null,null,null,null,null,null,"Kein Zusatzplan"]
[null,null,null,null,null,null,"Kein Zusatzplan"]
[null,null,null,null,null,null,"Kein Zusatzplan"]
[null,null,null,null,null,null,"Kein Zusatzplan"]
[null,null,null,null,null,null,"Kein Zusatzplan"]
[null,null,null,null,null,null,"Kein Zusatzplan"]
[null,null,null,null,null,null,"Kein Zusatzplan"]
[null,null,null,null,null,null,"Kein Zusatzplan"]
[null,null,null,null,null,null,"Kein Zusatzplan"]
[null,null,null,null,null,null,"Kein Zusatzplan"]
[null,null,null,null,null,null,"Kein Zusatzplan"]
[null,null,null,null,null,null,"Kein Zusatzplan"]
[null,null,null,null,null,null,"Kein Zusatzplan"]
[null,null,null,null,null,null,"Kein Zusatzplan"]
[null,null,null,null,null,null,"Kein Zusatzplan"]
[null,null,null,null,null,null,"Kein Zusatzplan"]
[null,null,null,null,null,null,"Kein Zusatzplan"]
[null,null,null,null,null,null,"Kein Zusatzplan"]
[null,null,null,null,null,null,"Kein Zusatzplan"]
[null,null,null,null,null,null,"Kein Zusatzplan"]
[null,null,null,null,null,null,"Kein Zusatzplan"]
[null,null,null,null,null,null,"Kein Zusatzplan"]
[null,null,null,null,null,null,"Kein Zusatzplan"]
[null,null,null,null,null,null,"Kein Zusatzplan"]
[null,null,null,null,null,null,"Kein Zusatzplan"]
[null,null,null,null,null,null,"Kein Zusatzplan"]
[null,null,null,null,null,null,"Kein Zusatzplan"]
[null,null,null,null,null,null,"Kein Zusatzplan"]
[null,null,null,null,null,null,"Kein Zusatzplan"]
[null,null,null,null,null,null,"Kein Zusatzplan"]
[null,null,null,null,null,null,"Kein Zusatzplan"]
[null,null,null,null,null,null,"Kein Zusatzplan"]
[null,null,null,null,null,null,"Kein Zusatzplan"]
[null,null,null,null,null,null,"Kein Zusatzplan"]
[null,null,null,null,null,null,"Kein Zusatzplan"]
[null,null,null,null,null,null,"Kein Zusatzplan"]
[null,null,null,null,null,null,"Kein Zusatzplan"]
[null,null,null,null,null,null,"Kein Zusatzplan"]
[null,null,null,null,null,null,"Kein Zusatzplan"]
[null,null,null,null,null,null,"Kein Zusatzplan"]
[null,null,null,null,null,null,"Kein Zusatzplan"]
[null,null,null,null,null,null,{"$f":"be_zusatzplan","v":"Kein Zusatzplan"}]
[null,null,null,null,null,null,"Kein Zusatzplan"]
[null,null,null,null,null,null,"Kein Zusatzplan"]
[null,null,null,null,null,null,"Kein Zusatzplan"]
[null,null,null,null,null,null,"Kein Zusatzplan"]
[null,null,null,null,null,null,"Kein Zusatzplan"]
[null,null,null,null,null,null,"Kein Zusatzplan"]
[null,null,null,null,null,null,"Kein Zusatzplan"]
[null,null,null,null,null,null,"Kein Zusatzplan"]
[null,null,null,null,null,null,"Kein Zusatzplan"]
[null,null,null,null,null,null,"Kein Zusatzplan"]
[null,null,null,null,null,null,"Kein Zusatzplan"]
[null,null,null,null,null,null,"Kein Zusatzplan"]
[null,null,null,null,null,null,"Kein Zusatzplan"]
[null,null,null,null,null,null,"Kein Zusatzplan"]
[null,null,null,null,null,null,"Kein Zusatzplan"]
[null,null,null,null,null,null,"Kein Zusatzplan"]
[null,null,null,null,null,null,"Kein Zusatzplan"]
[null,null,null,null,null,null,"Kein Zusatzplan"]
[null,null,null,null,null,null,"Kein Zusatzplan"]
[null,null,null,null,null,null,"Kein Zusatzplan"]
[null,null,null,null,null,null,"Kein Zusatzplan"]
[null,null,null,null,null,null,"Kein Zusatzplan"]
[null,null,null,null,null,null,"Kein Zusatzplan"]
[null,null,null,null,null,null,"Kein Zusatzplan"]
[null,null,null,null,null,null,"Kein Zusatzplan"]
[null,null,null,null,null,null,"Kein Zusatzplan"]
[null,null,null,null,null,null,"Kein Zusatzplan"]
[null,null,null,null,null,null,"Kein Zusatzplan"]
[null,null,null,null,null,null,"Kein Zusatzplan"]
[null,null,null,null,null,null,"Kein Zusatzplan"]
[null,null,null,null,null,null,"Kein Zusatzplan"]
[null,null,null,null,null,null,"Kein Zusatzplan"]
[null,null,null,null,null,null,"Kein Zusatzplan"]
[null,null,null,null,null,null,"Kein Zusatzplan"]
[null,null,null,null,null,null,"Kein Zusatzplan"]
[null,null,null,null,null,null,"Kein Zusatzplan"]
[null,null,null,null,null,null,"Kein Zusatzplan"]
[null,null,null,null,null,null,"Kein Zusatzplan"]
[null,null,null,null,null,null,"Kein Zusatzplan"]
[null,null,null,null,null,null,"Kein Zusatzplan"]
[null,null,null,null,null,null,"Kein Zusatzplan"]
[null,null,null,null,null,null,"Kein Zusatzplan"]
[null,null,null,null,null,null,"Kein Zusatzplan"]
[null,null,null,null,null,null,"Kein Zusatzplan"]
[null,null,null,null,null,null,"Kein Zusatzplan"]
[null,null,null,null,null,null,"Kein Zusatzplan"]
[null,null,null,null,null,null,"Kein Zusatzplan"]
[null,null,null,null,null,null,"Kein Zusatzplan"]
[null,null,null,null,null,null,"Kein Zusatzplan"]
[null,null,null,null,null,null,"Kein Zusatzplan"]
[null,null,null,null,null,null,"Kein Zusatzplan"]
[null,null,null,null,null,null,"Kein Zusatzplan"]
[null,null,null,null,null,null,"Kein Zusatzplan"]
[null,null,null,null,null,null,"Kein Zusatzplan"]
[null,null,null,null,null,null,"Kein Zusatzplan"]
[null,null,null,null,null,null,"Kein Zusatzplan"]
[null,null,null,null,null,null,"Kein Zusatzplan"]
[null,null,null,null,null,null,"Kein Zusatzplan"]
[null,null,null,null,null,null,"Kein Zusatzplan"]
[null,null,null,null,null,null,"Kein Zusatzplan"]
[null,null,null,null,null,null,"Kein Zusatzplan"]
[null,null,null,null,null,null,"Kein Zusatzplan"]
[null,null,null,null,null,null,"Kein Zusatzplan"]
[null,null,null,null,null,null,{"$f":"be_zusatzplan","v":"Kein Zusatzplan"}]
[null,null,null,null,null,null,"Kein Zusatzplan"]
[null,null,null,null,null,null,"Kein Zusatzplan"]
[null,null,null,null,null,null,"Kein Zusatzplan"]
[null,null,null,null,null,null,"Kein Zusatzplan"]
[null,null,null,null,null,null,"Kein Zusatzplan"]
[null,null,null,null,null,null,"Kein Zusatzplan"]
[null,null,null,null,null,null,"Kein Zusatzplan"]
[null,null,null,null,null,null,"Kein Zusatzplan"]
[null,null,null,null,null,null,"Kein Zusatzplan"]
[null,null,null,null,null,null,"Kein Zusatzplan"]
[null,null,null,null,null,null,"Kein Zusatzplan"]
[null,null,null,null,null,null,"Kein Zusatzplan"]
[null,null,null,null,null,null,"Kein Zusatzplan"]
[null,null,null,null,null,null,"Kein Zusatzplan"]
[null,null,null,null,null,null,"Kein Zusatzplan"]
[null,null,null,null,null,null,"Kein Zusatzplan"]
[null,null,null,null,null,null,"Kein Zusatzplan"]
[null,null,null,null,null,null,"Kein Zusatzplan"]
[null,null,null,null,null,null,"Kein Zusatzplan"]
[null,null,null,null,null,null,"Kein Zusatzplan"]
[null,null,null,null,null,null,"Kein Zusatzplan"]
[null,null,null,null,null,null,"Kein Zusatzplan"]
[null,null,null,null,null,null,"Kein Zusatzplan"]
[null,null,null,null,null,null,"Kein Zusatzplan"]
[null,null,null,null,null,null,"Kein Zusatzplan"]
[null,null,null,null,null,null,"Kein Zusatzplan"]
[null,null,null,null,null,null,"Kein Zusatzplan"]
[null,null,null,null,null,null,"Kein Zusatzplan"]
[null,null,null,null,null,null,"Kein Zusatzplan"]
[null,null,null,null,null,null,"Kein Zusatzplan"]
[null,null,null,null,null,null,"Kein Zusatzplan"]
[null,null,null,null,null,null,"Kein Zusatzplan"]
[null,null,null,null,null,null,"Kein Zusatzplan"]
[null,null,null,null,null,null,"Kein Zusatzplan"]
[null,null,null,null,null,null,"Kein Zusatzplan"]
[null,null,null,null,null,null,"Kein Zusatzplan"]
[null,null,null,null,null,null,"Kein Zusatzplan"]
[null,null,null,null,null,null,"Kein Zusatzplan"]
[null,null,null,null,null,null,"Kein Zusatzplan"]
[null,null,null,null,null,null,"Kein Zusatzplan"]
[{"$f":"COUNTA(A12:A1012)","v":0}]

{"sheet":"Bestandesübersicht","index":9,"n_rows":18,"n_cols":13,"rows_kept":18,"cut":false,"hidden":true,"merged":[[1,6,1,8]]}
[null,null,null,null,null,null,"Agrisano Pencas"]
[null,null,null,null,null,null,"Berufliche Vorsorge"]
["Beitragsverzeichnis Pensionskasse 2022",null,null,null,null,null,null,null,null,null,null,null,{"$f":"TODAY()","v":"2022-07-21"}]
[]
[]
[]
[]
["Plan A, mit Koordinationsabzug, Standardtarif",null,null,null,null,null,null,null,null,null,null,"Beitrag Arbeitnehmer",0.5]
["Vorname / Name  ",null,"Jahrgang","AHV-Lohn","Versicherter Lohn","Sparbeitrag %","Sparbeitrag","Risikobeitrag %","Risikobeitrag","Verwaltungs-kosten","Sicherheits-fonds Beitrag","Total Beitrag","davon Anteil Arbeitnehmer"]
[null,null,null,null,null,null,null,null,"Grundbeitrag Verwaltungskosten",null,null,95]
[null,null,null,null,null,null,null,null,"Verwaltungskosten Zusatzplan",null,null,{"$f":"IF(u_zusatzplan=0,0,95)","v":0}]
[null,null,null,null,null,null,null,null,"Total Beiträge Betrieb",null,null,{"$f":"SUM(L10:L11)","v":95}]
[]
[null,null,null,null,null,null,null,null,"Beitrag Arbeitnehmer",null,null,{"$f":"SUM(M9:M10)","v":0}]
[null,null,null,null,null,null,null,null,"Beitrag Arbeitgeber",null,null,{"$f":"L12-L14","v":95}]
["Hinweise"]
["Der Zins für die Nachschüssigkeit wurde nicht berücksichtigt."]
["Die Beitragsberechnung beruht auf den erfassten Daten. Massgebend ist schlussendlich die Beitragsrechnung der Agrisano Pencas, welche aufgrund der effektiv gemeldeten AHV-Löhne erstellt wird."]